{"text_format":"1","workbook":"xlsx","n_sheets":1,"sheets":["Tabelle1"],"not_rendered":{"charts":0,"images":0,"macros":1,"external_links":0,"defined_names":70,"comments":1,"pivot_tables":0},"unopened":[],"bounds":{"document_bytes":16777216,"sheet_cells":100000,"rows_first":2000,"rows_last":500,"rows_between":2000,"halvings":0,"cell_chars":16384,"cell_head_chars":4096},"cells_cut":0,"cells_raw":0,"read":"whole","date_system":"1900"}

{"sheet":"Tabelle1","index":0,"n_rows":192,"n_cols":69,"rows_kept":192,"cut":false,"hidden":false,"merged":[]}
["OZ","Typ","Beschreibung","Langtext","Menge","Einheit","EP [EUR]","GP [EUR]","TB Anzahl","TB1 Ansprache","TB1 Bietertext","TB1 Absprache","TB2 Ansprache","TB2 Bietertext","TB2 Absprache","TB3 Ansprache","TB3 Bietertext","TB3 Absprache","TB4 Ansprache","TB4 Bietertext","TB4 Absprache","TB5 Ansprache","TB5 Bietertext","TB5 Absprache","TB6 Ansprache","TB6 Bietertext","TB6 Absprache","TB7 Ansprache","TB7 Bietertext","TB7 Absprache","TB8 Ansprache","TB8 Bietertext","TB8 Absprache","TB9 Ansprache","TB9 Bietertext","TB9 Absprache","TB10 Ansprache","TB10 Bietertext","TB10 Absprache","TB11 Ansprache","TB11 Bietertext","TB11 Absprache","TB12 Ansprache","TB12 Bietertext","TB12 Absprache","TB13 Ansprache","TB13 Bietertext","TB13 Absprache","TB14 Ansprache","TB14 Bietertext","TB14 Absprache","TB15 Ansprache","TB15 Bietertext","TB15 Absprache","TB16 Ansprache","TB16 Bietertext","TB16 Absprache","TB17 Ansprache","TB17 Bietertext","TB17 Absprache","TB18 Ansprache","TB18 Bietertext","TB18 Absprache","TB19 Ansprache","TB19 Bietertext","TB19 Absprache","TB20 Ansprache","TB20 Bietertext","TB20 Absprache"]
[null,null,"Rahmenvereinbarung 2026",null,null,null,null,{"$f":"H4+H99","v":0}]
[null,"I","Vorbemerkung","Vorbemerkung\n\nDieser Rahmenvertrag enthält die allgemeinen Rahmenbedingungen für die Durchführung von Baumfäll- und Baumpflegearbeiten, die durch den Auftraggeber im Bedarfsfall durch „Einzelabrufe“ beauftragt werden können.\n\nEin solcher Einzelabruf besteht dann aus einem Beauftragungsschreiben und einer/einem formlosen E-Mail/Anschreiben des jeweils zuständigen Sachbearbeiters mit den genauen Angaben, was abgerufen wird, sowie einem Auszug der AGB der Stadt Essen, da der Umfang und der Zeitpunkt des jeweiligen Leistungsabrufes nicht vorab bestimmbar sind.\n\nDie jeweiligen Mengen sind geschätzt aufgrund der vorliegenden Auftragslage. Es kann jedoch zu Mehr- oder Mindermengen kommen. Das Rahmenvereinbarungsverhältnis begründet keinen Anspruch des Auftragnehmers auf Abruf einer bestimmten Mindestanzahl von Einzelabrufen. Es besteht insofern keine Abnahmeverpflichtung des Auftraggebers. Die im Leistungsverzeichnis gebildeten Massen-Vordersätze sind derzeit geschätzt aufgrund der Erfahrungswerte der letzten Jahre, sowie der geplanten Maßnahmen und dienen lediglich zur sachlich angemessenen Bewertung der preislichen Angebotsparameter. \n\nDie Angebotspreise sind Festpreise und gelten bis zum 31.12.2026.\n\nVom Auftragnehmer verursachte Schäden, beispielsweise an Wegen, vegetationstechnischen oder sonstigen Einrichtungs- oder Ausstattungsgegenständen sind von diesem auf eigene Kosten wieder instand zu setzen.\n\nJeder Abruf sollte unverzüglich bearbeitet und spätestens nach 14 Werktagen beendet werden.\n\nDas Leistungsverzeichnis ist in 2 Teillose aufgeteilt (Grugapark und Friedhöfe, bestehend aus zwei Friedhofsgruppen). Es muss mindestens ein Teillos vollständig angeboten werden. Es können jedoch auch beide Teillose angeboten werden. Sollte ein Bieter in mehr als einem Teillos das günstigste Gebot vorlegen, so ist vor der Zuschlagserteilung der schriftliche Nachweis zu erbringen, dass im Interesse einer zügigen Auftragserledigung jedes Teillos innerhalb der angegebenen Termine durch personell und maschinell ausgerüstete Teams gleichzeitig bearbeitet werden kann.\nDer Auftraggeber behält sich eine losweise Vergabe nach den für ihn günstigsten/wirtschaftlichsten Gesichtspunkten vor.\nAllgemeine Hinweise\n\nAlle Leistungen umfassen die Lieferung der dazugehörigen Stoffe und Bauteile einschließlich abladen und lagern auf der Baustelle, wenn in der Leistungsbeschreibung nichts anderes vorgeschrieben ist, sowie die Verwertung bzw. Deponierung unter Anwendung des Kreislaufwirtschaftsgesetzes. Bei der Angabe \"entsorgen\" oder \"zur Deponie transportieren\" in einem Leistungstext ist immer die Entrichtung der Deponiegebühren bzw. der Verwertungskosten Leistungsbestandteil und bei der Kalkulation der Einheitspreise zu berücksichtigen.\nAuf abweichende Regelungen wird im Text ausdrücklich hingewiesen.\n\nDer Auftragnehmer hat die Leistung im eigenen Betrieb auszuführen. Mit schriftlicher Zustimmung des Auftraggebers darf er sie an Nachunternehmer übertragen. \n\nAnsprechpartner Grugapark:\nHerr Krupp\nFon 0201/88-83212\nFax 0201/88-83214\nMobil 0160 90629060\nHYPERLINK \"mailto:mario.krupp@grugapark.essen.de\"mario.krupp@grugapark.essen.de\nKülshammerweg 32\n\nAnsprechpartner Friedhöfe:\nHerr Schwermann\nFon 0201/88-67690\nFax 0201/88-67694\nMobil 0171 4951008\nHYPERLINK \"mailto:jan.schwermann@gge.essen.de\"jan.schwermann@gge.essen.de\n\nFriedhofsgruppe 1:\nParkfriedhof, Am Parkfriedhof 33\nSiepenfriedhof, Becksiepenstraße 14\nOstfriedhof, Saarbrücker Straße 76\nFriedhof am Hellweg, Hellweg 95\nFriedhof am Hallo, Hallostraße 120\nFriedhof Frillendorf, Ernestinenstraße 267\nFriedhof Schonnebeck, Friedhofstraße\nFriedhof Kray, Siegfriedstraße 20\nFriedhof Heisingen I, Georgkirchstraße 7\nFriedhof Heisingen II, Wechselpfad 15\nFriedhof Rellinghausen, Am Glockenberg 36a\nFriedhof Überruhr, Holthuser Tal 20\nFriedhof Burgaltendorf, Worringstraße 4a\n\nFriedhofsgruppe 2:\nSüdwestfriedhof, Fulerumer Straße 15b\nFriedhof Karnap, Ahnewinkelstraße 51\nNordfriedhof, Hauerstraße 27\nFriedhof Kettwig, An der Nittlau 51\nFriedhof Werden II, Heskämpchen 2\nSüdfriedhof, Lührmannstraße 123,\nFriedhof Bredeney, Westerwaldstraße 6\nBergfriedhof, Scheppener Weg 40b\nTerrassenfriedhof, Kaldenhoverbaum 55\nFriedhof am Schildberg, Richtstraße 20"]
["01","1","Teillos 1-Grugapark",null,null,null,null,{"$f":"SUM(H8:H10)+SUM(H13:H13)+SUM(H16:H54)+SUM(H59:H86)+SUM(H89:H98)","v":0}]
["01.01","2","Baustellenvorbereitung",null,null,null,null,{"$f":"SUM(H8:H10)+SUM(H13:H13)+SUM(H16:H54)","v":0}]
["01.01.01","3","Baustelleneinrichtung",null,null,null,null,{"$f":"SUM(H8:H10)","v":0}]
["01.01.01.1010","I","Arbeitsstellensicherung","Arbeitsstellensicherung\nEinholung verkehrsrechtlicher Anordnungen gemäß § 45 Abs. 6 der Straßenverkehrsordnung\nAnmerkung\n\nVor der Durchführung von Arbeiten, die sich auf den Straßenverkehr auswirken, sind gemäß § 45 Abs. 6 der Straßenverkehrsordnung von der zuständigen Behörde verkehrsrechtliche Anordnungen über die Absperrung und Kennzeichnung der einzelnen Arbeitsstellen einzuholen. Hierbei ist zu beachten, dass in der Regel zur Vorbereitung der verkehrsrechtlichen Genehmigungen im Vorfeld ein Ortstermin mit einem Vertreter der genehmigenden Ordnungsbehörde stattfinden muss, um den jeweiligen Begebenheiten wie Anzahl der Fahrstreifen, eventuell vorhandener Parkstreifen, Bürgersteigbreite, etc. Rechnung tragen zu können. Bei der fachgerechten Erstellung des prüffähigen Beschilderungsplanes auf Basis von detaillierten Grundkarten (diese können bei Bedarf beim Amt für Geoinformation und Kataster der Stadt Essen erworben oder kostenlos über das Geodatenportal des Landes NRW (www.geoportal.nrw) bezogen werden) sind darüber hinaus u.a. die Unfallverhütungsvorschriften, die Bestimmungen der Berufsgenossenschaften, sowie das Straßenverkehrsrecht zu beachten.\n\nAufgrund der örtlichen und zeitlichen Gegebenheiten sind die Einrichtungen und Sicherungen der Baustellen von höchster Priorität. Den rechtlich normierten Vorgaben des Amtes für Straßen und Verkehr ist in vollem Umfang und ohne Abweichungen Folge zu leisten. Dabei sind folgende Verordnungen bzw. Richtlinien anzuwenden:\n-Straßenverkehrsordnung (STVO)\n-Richtlinien für die Sicherung von Arbeitstätten an\n Straßen (RSA) in der jeweils neuesten gültigen Fassung\n-Zusätzliche Technische Vertragsbedingungen und\n Richtlinien für Sicherungsarbeiten an Arbeitsstellen\n an Straßen (ZTV-SA 97)\n-Richtlinien für die Markierung von Straßen (RMS)\n-Technische Lieferbedingungen (TL) des\n Bundesministeriums für Verkehr und digitale\n Infrastruktur (BMVI) für das eingesetzte Material\n-Sämtliche Verkehrszeichen usw. müssen gem. DIN 67520\n voll reflektierend sein und das RAL-Gütezeichen der\n Güteschutzgemeinschaft Verkehrszeichen tragen, die zu\n verwendende Schriftart muss der DIN 1451 entsprechen\n-MVAS geschultes Personal als Voraussetzung\n\nSofern dem Auftragnehmer kein MVAS-geschultes Personal zur Verfügung steht und/oder die Anforderungen der genannten Vorschriften nicht selbst geleistet werden können, ist ein geeignetes Verkehrssicherungsunternehmen durch den Auftragnehmer mit o.g. Aufgaben zu beauftragen. Entstehende Kosten durch Einrichtungen und Sicherungen der Baustellen sowie der organisatorische Aufwand sind in den Angebotspreis der nachfolgenden Pauschalposition über die Sicherung der Baustelle(n) mit einzukalkulieren.\n\nAlle notwendigen Maßnahmen, Materialgestellungen und Zeitaufwendungen zur Vorbereitung von Arbeiten, die sich auf den Straßenverkehr auswirken, sind selbstständig vom Auftragnehmer vorzunehmen und in der Angebotserstellung zu berücksichtigen. Dies umfasst u.a.\n-die Vorsichtung von Bäumen, Flächen und\n Arbeitsbereichen\n-ggf. die Durchführung von Ortsterminen, die in der\n Regel bei Straßen mit besonderem Koordinierungsbedarf\n („KOST“-Straßen) erforderlich sind\n-das Einholen von Genehmigungen (verkehrsrechtliche\n Anordnungen)\n-die ordnungsgemäße Sicherung der Baustellen\n-Absprachen mit weiteren Ordnungsbehörden (z.B.\n Ordnungsamt)\n\nDie Aufwendungen unterscheiden sich z.B. für:\n1. Arbeitsstellen an/auf verkehrswichtigen Essener\n    Straßen („KOST“-Straßen), im unmittelbaren\n    Bereich (35 m) von Lichtzeichenanlagen,\n    Querungshilfen, Bushaltestellen,\n    Straßeneinmündungen oder in unübersichtlichen\n    Kurvenbereichen, wo der entgegenkommende Verkehr\n    nicht eingesehen werden kann\n2. Arbeitsstellen außerhalb von verkehrswichtigen\n    Essener Straßen (\"KOST-Straßen\"), außerhalb der\n    unmittelbaren Bereiche zu 1. und bei\n    übersichtlicher Verkehrssituation.\n\nBei Arbeitsstellen zu 1. sind rechtzeitig vor der beabsichtigten Maßnahme (im Regelfall 4-5 Wochen vorher) verkehrsrechtliche Anordnungen zu beantragen. Bereits vor der Beantragung ist eine Kontaktaufnahme mit der Straßenverkehrsbehörde-Fachbereich 66-5/Baustellenmanagement zur Vereinbarung eines Ortstermins zu empfehlen (aktuelles Telefonverzeichnis siehe Anlage).\n\nBei Arbeiten außerhalb von verkehrswichtigen Essener Straßen (\"KOST-Straßen\"), in einer Entfernung von mindestens 35 m zu stationären Lichtzeichenanlagen, muss ein Zeitrahmen von etwa 3 Wochen vor Arbeitsbeginn zur Erlangung der verkehrsrechtlichen Anordnung eingeplant werden. \nFür diese Straßen kann mit entsprechendem Eignungsnachweis bei der Straßenverkehrsbehörde eine Jahresgenehmigung zur Durchführung eines vereinfachten Genehmigungsverfahrens beantragt werden. \nSofern eine Jahresgenehmigung der Straßenverkehrsbehörde vorliegt, werden von dort für verschiedene einfachere Verkehrssituationen Regelbeschilderungspläne zur Verfügung gestellt. Die Jahresgenehmigung berücksichtigt auch nachfolgende Pflegegänge (z.B. Bewässerungseinsätze).\nIm Rahmen des v.g. vereinfachten Genehmigungsverfahrens sind vor der Durchführung der eigentlichen Arbeiten die jeweiligen Arbeitsstellen anzumelden (mind. 5 Arbeitstage vorher per Fax). Neben den Angaben zu der ausführenden Firma und des verantwortlichen Bauleiters müssen die Anmeldungen Angaben zur Arbeitsstelle und zum Arbeitsstellenbereich, zum Beginn und der voraussichtlichen Dauer sowie des anzuwendenden Regelplans beinhalten. Mit der Einrichtung der Arbeitsstelle und den Arbeiten, die sich auf den Straßenverkehr auswirken, darf grundsätzlich erst dann begonnen werden, wenn die Anmeldung zuvor ausdrücklich durch die Behörde genehmigt wurde.\nDie verkehrsrechtliche Anordnung als behördlich dokumentiertes Ergebnis des Genehmigungsverfahrens beinhaltet stets den individuellen oder bei vereinfachten Verfahren den jeweiligen Regelbeschilderungsplan.\n\nDie Gebühren der verkehrsrechtlichen Anordnung sind in Abhängigkeit von Qualität und Antragsfristen gestaffelt.\n\nArbeiten auf Hauptverkehrsstraßen:\nDer Auftragnehmer hat bei Arbeiten auf einer Hauptverkehrsstraße die Koordinierungsstelle für Straßenbaumaßnahmen (KOST) im Amt für Straßen und Verkehr (Fachbereich 66) zu beteiligen.\nAlle Informationen über Verkehrsbeeinträchtigungen sind an die KOST weiterzuleiten. Die KOST ist zu Verkehrsterminen einzuladen.\nBaubeginn und Bauende sind mit einem Vorlauf von zwei Werktagen der KOST mitzuteilen.\nKOST Tel.: 0201/8866-530, -531, -535\nKOST Fax: 0201/8866-529, -539\n\nArbeiten mit oder an Lichtsignalanlagen:\nDer Auftragnehmer hat bei Arbeiten an oder im Bereich von stationären Lichtsignalanlagen das Amt für Straßen und Verkehr (Abt. 66-2-2) zu beteiligen und zu den entsprechenden Ortsterminen einzuladen.\nAbt. 66-2-2 Tel.: 0201/8866-230, -232, -233, -234, -235, -236\nAbt. 66-2-2 Fax: 0201/8866-231",null,null,null,null,0]
["01.01.01.1010"," ","Sicherung der Baustelle(n)","Die Sicherheitsvorschriften der Berufsgenossenschaften sind zu beachten. Die Baustellen sind nach den \"Richtlinien für die Sicherung von Arbeitsstellen an Straßen (RSA)\" abzusichern. Hierfür notwendige Vorrichtungen (z.B. Absperrungen, Schutzgerüste, Warnleuchten, Blenden, Schilder, fahrbare, beleuchtete Absperrtafeln,...) sind vom AN zu stellen, vorzuhalten und nach Abschluss der Arbeiten zu beseitigen.\nIn dieser Pauschalposition wird der Gesamtaufwand des Auftragnehmers für das Liefern, Aufstellen, Vorhalten und Umsetzen sämtlicher Beschilderungen nach den Vorgaben der Beschilderungspläne der verkehrsrechtlichen Anordnungen aller Baustellen (für die Gesamtheit aller genehmigten Bauabschnitte) innerhalb der Ausschreibung bzw. für das vorliegende Los einmalig vergütet.",1,"psch",null,{"$f":"ROUND(E8*G8,2)","v":0},0]
["01.01.01.1020"," ","Vergütung des Aufwands zur Erlangung d. verkehrsrechtlichen Anordnung.","Der organisatorische Aufwand des Auftragnehmers zum Erlangen der verkehrsrechtlichen Anordnung wird durch den Einheitspreis dieser Position abgegolten. Dazu ist der Nachweis der eingeholten Genehmigungen erforderlich und muss mit der Rechnungsstellung beigefügt werden. Erhöhte Aufwendungen aufgrund der Nichteinhaltung des geforderten Zeitplans können nicht vergütet werden.\nEs ist bei der Kalkulation zu berücksichtigen, dass eventuell für jede Einzelgenehmigung ein Ortstermin mit der Verkehrsbehörde erforderlich ist. Die Bauleitung ist darüber zu informieren, indem entweder bei der Beantragung der verkehrsrechtlichen Anordnung (per E-Mail) bei der zuständigen Behörde die Bauleitung in CC gesetzt wird oder der Nachweis der eingeholten Genehmigungen der Bauleitung nachgereicht wird.",3,"St",null,{"$f":"ROUND(E9*G9,2)","v":0},0]
["01.01.01.1030","E","Erstattung der Gebühr für die verkehrsrechtliche Anordnung.","Für die verkehrsrechtlichen Anordnungen der Tagesbaustellen werden Gebühren erhoben. Diese Gebühren müssen zunächst vom Auftragnehmer vorfinanziert werden. Gegen Vorlage der Rechnung des Amtes für Straßen und Verkehr, werden dem Auftragnehmer diese Gebühren 1:1 im Zuge der Abschlagszahlungen erstattet. Die Abrechnung erfolgt über diese Leistungsposition, die bei der Angebotswertung jedoch nicht berücksichtigt wird. Es werden nur Gebühren für tatsächlich ausgeführte verkehrsrechtliche Anordnungen erstattet.\nBei dem vorgegebenen Wert handelt es sich um einen geschätzten Mittelwert.",3,"St",null,null,0]
["01.01.03","3","Baustraßen-Bauwege",null,null,null,null,{"$f":"SUM(H13:H13)","v":0}]
["01.01.03.3020","I","Sicherung vorhandener Wegebeläge oder sonstiger Flächen","Sicherung vorhandener Wegebeläge oder sonstiger Flächen\nAnmerkung\nVorhandene Wegebeläge oder sonstige Flächen sind mithilfe von befahrbaren Schutzplatten und einem Schutzvlies oder Baggermatratzen/-matten vor Beschädigungen beim Überfahren zu sichern.",null,null,null,null,0]
["01.01.03.3020"," ","Mobile Baustraße herstellen.","Mobile Baustraße mit lastverteilenden Hochleistungs-Bodenschutzplatten aus Kunststoff herstellen und für die Dauer der Baumaßnahme vorhalten. Maximales Fahrzeuggewicht 7,5 t, Fahrspurbreite mindestens 122 cm je Spur. Platten werden verschiebesicher mit Bodenanker und Verbindern aufgebaut, inkl. Lieferung aller Materialien. Rutschhemmende Oberfläche, mit einer Profilstärke von\n8 mm für maximale Traktion, in Längsrichtung und Querrichtung.\nDas mehrmalige Verlegen der Baustraße je nach Baufortschritt ist einzukalkulieren.\nAbrechnung nach Meter verlegter Doppelspur.",200,"m",null,{"$f":"ROUND(E13*G13,2)","v":0},0]
["01.01.06","3","Baumfällarbeiten",null,null,null,null,{"$f":"SUM(H16:H54)","v":0}]
["01.01.06.1010","I","Bäume fällen ohne Roden der Wurzelstöcke.","Bäume fällen ohne Roden der Wurzelstöcke\nAnmerkung\nDer Fällschnitt muss so oberflächennah wie möglich angesetzt werden, wenn in den Leistungspositionen oder der Vorbemerkung nichts anderes gefordert wird.\nDas anfallende Stamm- und Astholz wird Eigentum des AN und ist arbeitstäglich abzufahren, wenn nichts anderes im Leistungsverzeichnis gefordert wird.\nVorhalten von Arbeits- und Transportgeräten sowie Gestellung von Arbeitskräften. Schutz- und Sicherheitsmaßnahmen nach den Unfallverhütungs- und den ordnungsbehördlichen Vorschriften treffen. Dieses sind Nebenleistungen ohne gesonderte Vergütung.\nGemessen wird der Stammdurchmesser in 1 Meter Höhe über Boden- bzw. Planumhöhe. Das Aufmaß erfolgt vor Arbeitsbeginn nach Stückzahl.\nBei Reststämmen wird der Stammdurchmesser an der vorhandenen Schnittstelle gemessen.\n\nFür mit Rußrindenkrankheit befallene Bäume gilt:\nAlle befallenen Bäume sind komplett zu entfernen.\nDiese sind vor Ort mit der Kennzeichnung R/X/laufende Nummer in Magentarot markiert und werden dem Auftragnehmer durch die Bauleitung gesondert gemeldet. Siehe hierzu Abarbeitungsliste.\nEine Bürgerinformation bezüglich der Arbeiten und damit verbundenen Verhaltensweisen (geschlossene Fenster) erfolgt über die Bauüberwachung des Auftraggebers.\nEs wird zum Schutz des eingesetzten Baumpflegepersonals vorgegeben, Einweg-Schutzanzüge (gegen Stäube) und Partikel-Atemmasken der Schutzklasse P3 mit Ausatemventil zu tragen. Die zusätzlich notwendige PSA ist durch den Auftragnehmer zu stellen und in die Einzelpreise einzukalkulieren.\nDie Bäume sind abschnittsweise zu fällen, das Schnittgut ist ohne vorheriges Häckseln in Container oder Transportfahrzeuge mit Abdeckung zu laden.",null,null,null,null,0]
["01.01.06.1010"," ","Bäume fällen, Stammdurchmesser: 0-10 cm.","Bäume fällen.\nStammdurchmesser: bis 10 cm.",2,"St",null,{"$f":"ROUND(E16*G16,2)","v":0},0]
["01.01.06.1020"," ","Bäume fällen, Stammdurchmesser: 11-20 cm.","Bäume fällen.\nStammdurchmesser: über 11 cm bis 20 cm.",5,"St",null,0,0]
["01.01.06.1030"," ","Bäume fällen, Stammdurchmesser: 21-30 cm.","Bäume fällen.\nStammdurchmesser: über 20 cm bis 30 cm.",5,"St",null,0,0]
["01.01.06.1040"," ","Bäume fällen, Stammdurchmesser: 31-40 cm.","Bäume fällen.\nStammdurchmesser: über 30 cm bis 40 cm.",5,"St",null,0,0]
["01.01.06.1050"," ","Bäume fällen, Stammdurchmesser: 41-50 cm.","Bäume fällen.\nStammdurchmesser: über 40 cm bis 50 cm.",5,"St",null,0,0]
["01.01.06.1060"," ","Bäume fällen, Stammdurchmesser: 51-60 cm.","Bäume fällen.\nStammdurchmesser: über 50 cm bis 60 cm.",5,"St",null,0,0]
["01.01.06.1070"," ","Bäume fällen, Stammdurchmesser: 61-70 cm.","Bäume fällen.\nStammdurchmesser: über 60 cm bis 70 cm.",3,"St",null,0,0]
["01.01.06.1080"," ","Bäume fällen, Stammdurchmesser: 71-80 cm.","Bäume fällen.\nStammdurchmesser: über 70 cm bis 80 cm.",3,"St",null,0,0]
["01.01.06.1090"," ","Bäume fällen, Stammdurchmesser: 81-90 cm.","Bäume fällen.\nStammdurchmesser: über 80 cm bis 90 cm.",3,"St",null,0,0]
["01.01.06.1100"," ","Bäume fällen, Stammdurchmesser: 91-100 cm.","Bäume fällen.\nStammdurchmesser: über 90 cm bis 100 cm.",3,"St",null,0,0]
["01.01.06.1110"," ","Bäume fällen, Stammdurchmesser: 101-110 cm.","Bäume fällen.\nStammdurchmesser: über 100 cm bis 110 cm.",3,"St",null,0,0]
["01.01.06.1120"," ","Bäume fällen, Stammdurchmesser: 111-120 cm.","Bäume fällen.\nStammdurchmesser: über 110 cm bis 120 cm.",1,"St",null,0,0]
["01.01.06.1130"," ","Bäume fällen, Stammdurchmesser: 121-130 cm.","Bäume fällen.\nStammdurchmesser: über 120 cm bis 130 cm.",1,"St",null,0,0]
["01.01.06.1140"," ","Bäume fällen, Stammdurchmesser: 131-140 cm.","Bäume fällen.\nStammdurchmesser: über 130 cm bis 140 cm.",1,"St",null,0,0]
["01.01.06.1150"," ","Bäume fällen, Stammdurchmesser: 141-150 cm.","Bäume fällen.\nStammdurchmesser: über 140 cm bis 150 cm.",1,"St",null,0,0]
["01.01.06.1160"," ","Bäume fällen, Stammdurchmesser: 151-160 cm.","Bäume fällen.\nStammdurchmesser: über 150 cm bis 160 cm.",1,"St",null,0,0]
["01.01.06.1170"," ","Bäume fällen, Stammdurchmesser: 161-170 cm.","Bäume fällen.\nStammdurchmesser: über 160 cm bis 170 cm.",1,"St",null,0,0]
["01.01.06.1180"," ","Bäume fällen, Stammdurchmesser: 171-180 cm.","Bäume fällen.\nStammdurchmesser: über 170 cm bis 180 cm.",1,"St",null,0,0]
["01.01.06.2010","I","Bäume fällen mit Roden der Wurzelstöcke.","Bäume fällen mit Roden bzw. Ausfräsen der Wurzelstöcke Anmerkung\nDas anfallende Stamm-, Astholz und die Wurzelstöcke sind arbeitstäglich abzufahren, wenn nichts anderes im Leistungstext gefordert wird.\nEntstandene Löcher mit Boden gemäß DIN 18915, Bodengruppe 3 bis 4, auf Planumhöhe verfüllen und verdichten.\nVorhalten von Arbeits- und Transportgeräten sowie Gestellung von Arbeitskräften. Schutz- und Sicherungsmaßnahmen nach den Unfallverhütungs- und Polizei- und Ordnungsvorschriften treffen. Dieses sind Nebenleistungen ohne gesonderte Vergütung.\nGemessen wird der Stammdurchmesser 1 Meter über Planumhöhe. Das Aufmaß erfolgt vor dem Arbeitsbeginn nach Stückzahl.",null,null,null,null,0]
["01.01.06.2010"," ","Bäume roden, Stammdurchmesser: 0-10 cm.","Bäume fällen mit vollständiger Entfernung der Wurzelstöcke.\nStammdurchmesser: über 0 cm bis 10 cm.",5,"St",null,{"$f":"ROUND(E35*G35,2)","v":0},0]
["01.01.06.2020"," ","Bäume roden, Stammdurchmesser: 11-20 cm.","Bäume fällen mit vollständiger Entfernung der Wurzelstöcke.\nStammdurchmesser: über 11 cm bis 20 cm.",10,"St",null,0,0]
["01.01.06.2030"," ","Bäume roden, Stammdurchmesser: 21-30 cm.","Bäume fällen mit vollständiger Entfernung der Wurzelstöcke.\nStammdurchmesser: über 20 cm bis 30 cm.",15,"St",null,0,0]
["01.01.06.2040"," ","Bäume roden, Stammdurchmesser: 31-40 cm.","Bäume fällen mit vollständiger Entfernung der Wurzelstöcke.\nStammdurchmesser: über 30 cm bis 40 cm.",15,"St",null,0,0]
["01.01.06.2050"," ","Bäume roden, Stammdurchmesser: 41-50 cm.","Bäume fällen mit vollständiger Entfernung der Wurzelstöcke.\nStammdurchmesser: über 40 cm bis 50 cm.",10,"St",null,0,0]
["01.01.06.2060"," ","Bäume roden, Stammdurchmesser: 51-60 cm.","Bäume fällen mit vollständiger Entfernung der Wurzelstöcke.\nStammdurchmesser: über 50 cm bis 60 cm.",10,"St",null,0,0]
["01.01.06.2070"," ","Bäume roden, Stammdurchmesser: 61-70 cm.","Bäume fällen mit vollständiger Entfernung der Wurzelstöcke.\nStammdurchmesser: über 60 cm bis 70 cm.",5,"St",null,0,0]
["01.01.06.2080"," ","Bäume roden, Stammdurchmesser: 71-80 cm.","Bäume fällen mit vollständiger Entfernung der Wurzelstöcke.\nStammdurchmesser: über 70 cm bis 80 cm.",5,"St",null,0,0]
["01.01.06.2090"," ","Bäume roden, Stammdurchmesser: 81-90 cm.","Bäume fällen mit vollständiger Entfernung der Wurzelstöcke.\nStammdurchmesser: über 80 cm bis 90 cm.",2,"St",null,0,0]
["01.01.06.2100"," ","Bäume roden, Stammdurchmesser: 91-100 cm.","Bäume fällen mit vollständiger Entfernung der Wurzelstöcke.\nStammdurchmesser: über 90 cm bis 100 cm.",2,"St",null,0,0]
["01.01.06.2110"," ","Bäume roden, Stammdurchmesser: 101-110 cm.","Bäume fällen mit vollständiger Entfernung der Wurzelstöcke.\nStammdurchmesser: über 100 cm bis 110 cm.",1,"St",null,0,0]
["01.01.06.2120"," ","Bäume roden, Stammdurchmesser: 111-120 cm.","Bäume fällen mit vollständiger Entfernung der Wurzelstöcke.\nStammdurchmesser: über 110 cm bis 120 cm.",1,"St",null,0,0]
["01.01.06.2130"," ","Bäume roden, Stammdurchmesser: 121-130 cm.","Bäume fällen mit vollständiger Entfernung der Wurzelstöcke.\nStammdurchmesser: über 120 cm bis 130 cm.",1,"St",null,0,0]
["01.01.06.2140"," ","Bäume roden, Stammdurchmesser: 131-140 cm.","Bäume fällen mit vollständiger Entfernung der Wurzelstöcke.\nStammdurchmesser: über 130 cm bis 140 cm.",1,"St",null,0,0]
["01.01.06.2150"," ","Bäume roden, Stammdurchmesser: 141-150 cm.","Bäume fällen mit vollständiger Entfernung der Wurzelstöcke.\nStammdurchmesser: über 140 cm bis 150 cm.",1,"St",null,0,0]
["01.01.06.2160"," ","Bäume roden, Stammdurchmesser: 151-160 cm.","Bäume fällen mit vollständiger Entfernung der Wurzelstöcke.\nStammdurchmesser: über 150 cm bis 160 cm.",1,"St",null,0,0]
["01.01.06.2170"," ","Bäume roden, Stammdurchmesser: 161-170 cm.","Bäume fällen mit vollständiger Entfernung der Wurzelstöcke.\nStammdurchmesser: über 160 cm bis 170 cm.",1,"St",null,0,0]
["01.01.06.2180"," ","Bäume roden, Stammdurchmesser: 171-180 cm.","Bäume fällen mit vollständiger Entfernung der Wurzelstöcke.\nStammdurchmesser: über 170 cm bis 180 cm.",1,"St",null,0,0]
["01.01.06.2190"," ","Bäume roden, Stammdurchmesser: 181-190 cm.","Bäume fällen mit vollständiger Entfernung der Wurzelstöcke.\nStammdurchmesser: über 180 cm bis 190 cm.",1,"St",null,0,0]
["01.01.06.2200"," ","Bäume roden, Stammdurchmesser: 191-200 cm.","Bäume fällen mit vollständiger Entfernung der Wurzelstöcke.\nStammdurchmesser: über 190 cm bis 200 cm.",1,"St",null,0,0]
["01.09","2","Pflege",null,null,null,null,{"$f":"SUM(H59:H86)+SUM(H89:H98)","v":0}]
["01.09.02","3","Baumschnitt-Kronenschnitt",null,null,null,null,{"$f":"SUM(H59:H86)","v":0}]
["01.09.02.1010","I","Baumschnitt-Kronenschnitt","Baumschnitt-Kronenschnitt\nAnmerkung\nAlle Schnittarbeiten sind entsprechend den Anforderungen der ZTV Baum 2017 durchzuführen.\nInsbesondere wird auf die Begriffsbestimmungen des\nAbs. 1.2 verwiesen. Die Ausführungshinweise des\nAbs. 3.1 sind zu beachten.\n\nBei Arbeiten in Seilklettertechnik müssen grundsätzlich zwei in Seilklettertechnik ausgebildete Mitarbeiter vor Ort sein, damit sowohl das Klettern als auch das nach den Vorgaben der Berufsgenossenschaft vorgeschriebene Sichern des Kletterers gewährleistet ist.\n\nDie Schadbeurteilung sowie die Schnittmaßnahmen müssen durch geschultes Personal erfolgen. Es ist die Fachkunde in der Schadbildbeurteilung durch eine FLL-Zertifizierung als Baumkontrolleur (oder höher-/gleichwertig) nachzuweisen.\nDie Fachkunde für durchzuführende Schnittmaßnahmen ist durch den Nachweis der Zertifizierung als European Treeworker (ETW) bzw. höher-/gleichwertig nachzuweisen.\n\nDie Kontrolle von vorhandenen Kronensicherungen gehört mit zur Leistung und wird nicht gesondert vergütet.\n\nDas Befahren des unbefestigten, durchwurzelbaren Raumes ist zu unterlassen. Es sind Sonderarbeitsverfahren anzuwenden.\n(Durchwurzelbarer Raum = Kronentraufe + 2 m)\n\nDas Befahren von Grünflächen ist grundsätzlich untersagt. Erforderliche Transportwege über Gehwegflächen sind mit der Bauleitung zu vereinbaren. Beschädigungen und Verschmutzungen sind zu vermeiden. Es haftet der Auftragnehmer. Vom Auftragnehmer verursachte Schäden an Wegen, vegetationstechnischen oder sonstigen Einrichtungs- oder Ausstattungsgegenständen sind von diesem auf eigene Kosten wieder instandzusetzen.\n\nHinweis:\nBei den Mengenangaben zum Entfernen von Starkästen über 10 cm Durchmesser am Astansatz (\"Einkürzen von Kronenteilen\") handelt es sich um Schätzungen. Abgerechnet werden die tatsächlich entfernten Äste nach gemeinsamem Aufmaß mit Vertretern des Auftragnehmers und Auftraggebers.\n\nSchnittführung nach ZTV Baum:\n",null,null,null,null,0]
["01.09.02.1010","I","Kronenpflege gemäß ZTV Baumpflege 2017","Kronenpflege gemäß ZTV Baumpflege 2017\nAnmerkung\nDie Kronenpflege schließt die Kontrolle von Platanen hinsichtlich eines Befalls mit Schaderregern, z.B. Massaria in den Baumkronen ein. Zu beachten ist, dass Totholz und durch Schaderreger befallenes Holz in jedem Fall zu entfernen ist. Die Entnahme toter und kranker Äste bis 10 cm Astdurchmesser am Astansatz ist in die Preise einzukalkulieren und wird nicht gesondert vergütet. Starkäste mit größerem Durchmesser werden gemäß der aufgeführten Sonderposition „Einkürzung von Kronenteilen“ zusätzlich vergütet.\n\nVorbeugende Schnittmaßnahmen im Fein- und Schwachastbereich (d=1-5 cm) und Grobastbereich (d=6-10 cm) dienen dem Erhalt eines art- bzw. sortentypischen Erscheinungsbildes.\nErfahrungsgemäß sind durchschnittlich bei Platanen 2-5 Stück Grobäste und bei allen anderen Gattungen1-2 Stück Grobäste je Baum zu entfernen. Diese Werte können im Einzelfall und je nach Kronenmächtigkeit stark nach unten und nach oben schwanken. Das Entfernen von Fein-, Schwach- und Grobästen im Zuge der Kronenpflege bzw. zur Wiederherstellung der Verkehrssicherheit ist als Nebenleistung mit einzukalkulieren.\n\nTote, kranke und im Absterben befindliche Äste, sowie Konkurrenzäste sind zu entfernen. \n\nBei sich kreuzenden und reibenden Ästen bis Schwachastbereich (d=1-5 cm) ist einer zu entfernen.\nNicht zukunftsorientierte Äste bis Grobastbereich (d=1-10 cm) im inneren Kronenbereich sind baumverträglich zu entnehmen, mit dem Ziel die Gesundheit des Baumes zu fördern, indem tote oder schwache Äste entfernt werden, um Platz und Ressourcen für gesündere Zweige zu schaffen.\n\nBereits vorhandene, unfachgerechte Schnitte (Stummel, unregelmäßige Schnittflächen ab Starkaststärke) sind nachzuschneiden. Wundholz oder Kallusbildung dürfen dabei nicht verletzt werden.\n\nAngrenzende Gebäude (Fassade, Dach etc.) sind mindestens 2 m, Wegeflächen, Laternen und Verkehrszeichen 1-2 m freizuhalten, sofern dies baumverträglich, z.B. durch Ableitung auf Versorgungsast, ermöglicht werden kann.\n\nErstellen eines Lichtraumprofils von mindestens 4,5 m im Fahrbahn- und mindestens 2,5 m außerhalb des Fahrbahnbereiches (Gehweg etc.), falls erforderlich sind Stamm- und Stockaustriebe zur Erhaltung oder Wiederherstellung des Lichtraumprofils zu entfernen. Im Fein- und Schwachastbereich (d=1-5 cm) gebildete Schleppen sind über dem Fahrbahnbereich bis zu einer Höhe von 6 bis 7 m, bzw. außerhalb des Fahrbahnbereiches (Gehweg etc.) bis zu einer Höhe von 3 bis 4 m baumverträglich zu entfernen (Abbildung 1).\n\n \nSchleppen vorher\n\n \nSchleppen nachher\n\nWährend eines Pflegeganges dürfen keine direkt neben- oder übereinander liegenden Wunden über 3 cm Durchmesser erzeugt werden. Ausgenommen sind tote, kranke und im Absterben befindliche Äste.\n\nIn der Baumkrone gebildete Reïterate sind auf ihre Anbindung sowie auf ihre statische Auswirkung hinsichtlich ihrer Position im Baum zu überprüfen und ggf. zu entfernen. Hinsichtlich der Funktionsentwicklung des Baumes sind gut angebundene statisch unproblematische Reïterate zukunftsorientiert zu vereinzeln. Darüber hinaus sind gebildete Ständer zur Erhaltung der Verkehrssicherheit zu vereinzeln und einzukürzen. Es ist möglichst auf Versorgungsast abzuleiten. Hierbei sind nebeneinander liegende Schnitte unvermeidbar.\n\nAstausbruchsstellen/Kappungsstellen sind auf Einfaulungen und hinsichtlich Ihrer Statik zu überprüfen und ggf. erneut einzukürzen und fachgerecht auf Zug- oder Versorgungsast abzuleiten. Der Artenschutz muss bei dieser Maßnahme in hohem Grad berücksichtigt werden, z.B. bei vorhandenen Spechtlöchern.\n\nEs muss eine Sichtkontrolle aller relevanten Äste in ihrer Gesamtheit erfolgen. \nNach der Kontrolle der Platanen hinsichtlich eines Krankheitsbefalls, muss dem Auftraggeber durch den FLL-zertifizierten Baumkontrolleur bescheinigt werden, dass befallene Äste entfernt wurden, so dass die Verkehrssicherheit der verbliebenen Äste als gesichert gilt.\n\nSchnittgut geht ins Eigentum des AN über und ist ausschließlich arbeitstäglich zu entsorgen. Im direkten Bereich um Kitas, Schulen und KSP darf das Holz nicht vor Ort gehäckselt werden. Im Kontext des Pflegezustandes müssen die Baustellen sowie die Flächen mit Asthaufen nach dem Abtransport des Schnittgutes in ihren ursprünglichen Zustand zurückversetzt werden.\n\nErschwernisse durch Hanglage, Straßenverkehr, Zäune oder durch andere Hindernisse werden nicht gesondert vergütet.\n\nFeinäste (über 1 cm bis 3 cm) und Schwachäste (über 3 cm bis 5 cm) dürfen nicht mit der Motorsäge abgeschnitten werden, um saubere Schnittstellen zu gewährleisten. Im Rahmen der vorbeugenden Baumpflege kommen also überwiegend handgeführte Sägen zum Einsatz. Starkäste (d über 10 cm) können in Absprache mit der Bauaufsicht entnommen werden, wenn dies im Zusammenhang mit Verkehrssicherungsmaßnahmen erforderlich wird. Hier (und bei der Entfernung von Grobästen) ist der Einsatz von Motorsägen zulässig. Wo möglich ist es vorzuziehen Grob- oder Starkäste nur einzukürzen und nach außen abzuleiten. Das Schneiden von Starkästen wird über entsprechende Leistungspositionen extra abgerechnet.\n\nGrobäste sind gemäß ZTV Baumpflege 2017 Äste mit 5-10 cm Durchmesser. Starkäste haben einen Durchmesser von über 10 cm. Ihre Stärke wird in den Leistungspositionen\nnäher definiert. Bei Entnahme ab Starkaststärke ist die Bauaufsicht über Umfang und Baumnummer zu informieren, z.B. Foto vom Schadbild. Ein Astquerschnitt aus dem Bereich der Astanbindung ist zwecks Aufmaß aufzubewahren.\n\nDie Schadbeurteilung sowie die Schnittmaßnahmen müssen durch geschultes Personal erfolgen. Je eingesetzter Kolonne ist die Fachkunde in der Schadbildbeurteilung durch eine FLL-Zertifizierung als Baumkontrolleur (oder höher-/gleichwertig) und die Fachkunde für durchzuführende Schnittmaßnahmen durch die der Zertifizierung als European Treeworker (ETW) bzw. höher-/gleichwertig nachzuweisen.\nEs gelten in besonderem Maße die Bestimmungen der SVLFG Sozialversicherung Landwirtschaft, Forsten, Gartenbau gemäß B09.\nDer Auftragnehmer benennt der städtischen Bauleitung mindestens einen betrieblich verantwortlichen deutschsprachigen Ansprechpartner (mindestens Sprachlevel \"C1\"), sowie eine Vertretungsperson für Bürger, Behörden und Bauleitung mit Angabe der untertägigen Kontaktdaten auf der Baustelle. Außerdem ist je eingesetzter Kolonne ein deutschsprachiger Mitarbeiter seitens des AN zu stellen, um die Belange der Arbeitssicherheit gewährleisten zu können.\n\nDie Erstellung des Tagesleistungsbeleges zur gerichtsfesten abrechenbaren Leistungsanerkennung der ausgeführten Arbeiten ist gemäß den Vorbemerkungen anzufertigen.\nBei Bereitstellung der App ist der Tagesleistungsbeleg ausschließlich in digitaler Form anzufertigen. Sowohl die analoge, als auch die digitale Variante des Tagesleistungsbeleges beinhaltet die tagesgenaue, einzelbaumbezogene Dokumentation aller erbrachten abrechenbarer Leistungen. Die Variante der analogen Erstellung der Tagesleistungsbelege ist vom zuständigen Vorarbeiter zu unterschreiben, mit Firmenstempel zu versehen und der zuständigen städtischen Bauaufsicht zur Leistungsanerkennung vorzulegen. Der Leistungsnachweis (analog oder digital) ist spätestens am nächsten Arbeitstag nach geleisteter Arbeit einzureichen.",null,null,null,null,0]
["01.09.02.1010"," ","Kronenpflege mit Hubsteiger an Bäumen durchführen, d=5-20 cm.","Kronenpflege mittels Hubsteigereinsatzes an Bäumen durchführen.\nStammdurchmesser: über 5 bis 20 cm\nBaumhöhe: bis 20 m",10,"St",null,{"$f":"ROUND(E59*G59,2)","v":0},0]
["01.09.02.1020"," ","Kronenpflege mit Hubsteiger an Bäumen durchführen, d=21-30 cm.","Kronenpflege mittels Hubsteigereinsatzes an Bäumen durchführen.\nStammdurchmesser: über 20 bis 30 cm\nBaumhöhe: bis 20 m",15,"St",null,0,0]
["01.09.02.1030"," ","Kronenpflege mit Hubsteiger an Bäumen durchführen, d=31-40 cm.","Kronenpflege mittels Hubsteigereinsatzes an Bäumen durchführen.\nStammdurchmesser: über 30 bis 40 cm\nBaumhöhe: bis 20 m",15,"St",null,0,0]
["01.09.02.1040"," ","Kronenpflege mit Hubsteiger an Bäumen durchführen, d=41-50 cm.","Kronenpflege mittels Hubsteigereinsatzes an Bäumen durchführen.\nStammdurchmesser: über 40 bis 50 cm\nBaumhöhe: bis 20 m",20,"St",null,0,0]
["01.09.02.1050"," ","Kronenpflege mit Hubsteiger an Bäumen durchführen, d=51-60 cm.","Kronenpflege mittels Hubsteigereinsatzes an Bäumen durchführen.\nStammdurchmesser: über 50 bis 60 cm\nBaumhöhe: bis 20 m",20,"St",null,0,0]
["01.09.02.1060"," ","Kronenpflege mit Hubsteiger an Bäumen durchführen, d=61-70 cm.","Kronenpflege mittels Hubsteigereinsatzes an Bäumen durchführen.\nStammdurchmesser: über 60 bis 70 cm\nBaumhöhe: bis 20 m",20,"St",null,0,0]
["01.09.02.1070"," ","Kronenpflege mit Hubsteiger an Bäumen durchführen, d=71-80 cm.","Kronenpflege mittels Hubsteigereinsatzes an Bäumen durchführen.\nStammdurchmesser: über 70 bis 80 cm\nBaumhöhe: bis 20 m",15,"St",null,0,0]
["01.09.02.1080"," ","Kronenpflege mit Hubsteiger an Bäumen durchführen, d=81-90 cm.","Kronenpflege mittels Hubsteigereinsatzes an Bäumen durchführen.\nStammdurchmesser: über 80 bis 90 cm\nBaumhöhe: bis 25 m",15,"St",null,0,0]
["01.09.02.1090"," ","Kronenpflege mit Hubsteiger an Bäumen durchführen, d=91-100 cm.","Kronenpflege mittels Hubsteigereinsatzes an Bäumen durchführen.\nStammdurchmesser: über 90 bis 100 cm\nBaumhöhe: bis 25 m",10,"St",null,0,0]
["01.09.02.1100"," ","Kronenpflege mit Hubsteiger an Bäumen durchführen, d=101-110 cm.","Kronenpflege mittels Hubsteigereinsatzes an Bäumen durchführen.\nStammdurchmesser: über 100 bis 110 cm\nBaumhöhe: bis 25 m",10,"St",null,0,0]
["01.09.02.1110"," ","Kronenpflege mit Hubsteiger an Bäumen durchführen, d=111-120 cm.","Kronenpflege mittels Hubsteigereinsatzes an Bäumen durchführen.\nStammdurchmesser: über 110 bis 120 cm\nBaumhöhe: bis 25 m",10,"St",null,0,0]
["01.09.02.1120"," ","Kronenpflege mit Hubsteiger an Bäumen durchführen, d=121-130 cm.","Kronenpflege mittels Hubsteigereinsatzes an Bäumen durchführen.\nStammdurchmesser: über 120 bis 130 cm\nBaumhöhe: bis 30 m",5,"St",null,0,0]
["01.09.02.1130"," ","Kronenpflege mit Hubsteiger an Bäumen durchführen, d=131-140 cm.","Kronenpflege mittels Hubsteigereinsatzes an Bäumen durchführen.\nStammdurchmesser: über 130 bis 140 cm\nBaumhöhe: bis 30 m",5,"St",null,0,0]
["01.09.02.1140"," ","Kronenpflege mit Hubsteiger an Bäumen durchführen, d=141-150 cm.","Kronenpflege mittels Hubsteigereinsatzes an Bäumen durchführen.\nStammdurchmesser: über 140 bis 150 cm\nBaumhöhe: bis 30 m",5,"St",null,0,0]
["01.09.02.1150"," ","Kronenpflege mit Hubsteiger an Bäumen durchführen, d=151-160 cm.","Kronenpflege mittels Hubsteigereinsatzes an Bäumen durchführen.\nStammdurchmesser: über 150 bis 160 cm\nBaumhöhe: bis 30 m",2,"St",null,0,0]
["01.09.02.1160"," ","Kronenpflege mit Hubsteiger an Bäumen durchführen, d=161-170 cm.","Kronenpflege mittels Hubsteigereinsatzes an Bäumen durchführen.\nStammdurchmesser: über 160 bis 170 cm\nBaumhöhe: bis 30 m",2,"St",null,0,0]
["01.09.02.1170"," ","Kronenpflege mit Hubsteiger an Bäumen durchführen, d=171-180 cm.","Kronenpflege mittels Hubsteigereinsatzes an Bäumen durchführen.\nStammdurchmesser: über 170 bis 180 cm\nBaumhöhe: bis 30 m",2,"St",null,0,0]
["01.09.02.1320"," ","Zulage für Kronenpflege im Sonderarbeitsverfahren, d bis 50 cm","Zulage für Kronenpflege im Sonderarbeitsverfahren, z.B. Seilklettertechnik\nStammdurchmesser: bis 50 cm",5,"St",null,0,0]
["01.09.02.1330"," ","Zulage für Kronenpflege im Sonderarbeitsverfahren, d=51-100 cm","Zulage für Kronenpflege im Sonderarbeitsverfahren, z.B. Seilklettertechnik\nStammdurchmesser: über 50 bis 100 cm",5,"St",null,0,0]
["01.09.02.1340"," ","Zulage für Kronenpflege im Sonderarbeitsverfahren, d=101-150 cm","Zulage für Kronenpflege im Sonderarbeitsverfahren, z.B. Seilklettertechnik\nStammdurchmesser: über 100 bis 150 cm",5,"St",null,0,0]
["01.09.02.1350"," ","Zulage für Kronenpflege im Sonderarbeitsverfahren, d=151-200 cm","Zulage für Kronenpflege im Sonderarbeitsverfahren, z.B. Seilklettertechnik\nStammdurchmesser: über 150 bis 200 cm",2,"St",null,0,0]
["01.09.02.1510","I","Einkürzung von Kronenteilen","„Einkürzung von Kronenteilen“ \ngemäß Abschnitt 0.2.3.1 ZTV-Baumpflege und Anhang A 2 „Begriffsbestimmungen“ ZTV-Baumpflege\nAnmerkung\n„Schnittmaßnahmen an Kronen, die aus Gründen der Verkehrssicherheit oder des Baumumfeldes in Teilbereichen eingekürzt werden müssen, bei Bedarf auch im Grob- und Starkastbereich. Zum Erhalt der artgerechten Kronenstruktur macht diese Maßnahme oft eine Korrektur der gesamten Krone erforderlich.“\n\nAstdurchmesser unter 10 cm sind eher Zweige und Feinverästelungen und zählen nicht zur eigentlich tragenden Krone. Sie fallen in den Bereich der leichten Pflege (Kronenpflege oder Auslichtung), haben aber keine entscheidende strukturelle Rolle.\nAstdurchmesser ab 10 cm betreffen tragende Teile der Baumkrone, und eine Einkürzung dieser Äste fällt unter die eigentliche Kroneneinkürzung, die in verschiedenen Stärken (21-50 cm, 51-100 cm und größer) klassifiziert werden können.\n\nEinzelne Äste oder Stämmlinge sind entsprechend der Erfordernisse der Verkehrssicherheit und/oder des Baumumfeldes einzukürzen. Diese Leistungspositionen werden je nach Durchmesser und Länge des zu bearbeitenden Kronenteils vergütet. Der Durchmesser wird am Astansatz gemessen (wie in der nachfolgenden Skizze angegeben). Diese Leistungspositionen werden nur nach Absprache mit der Bauleitung durchgeführt und vergütet.\n\n ",null,null,null,null,0]
["01.09.02.1510"," ","Entfernen von Starkästen d>10-20 cm.","Entfernen von kranken, geschädigten, abgestorbenen oder massariabefallenen Starkästen über 10 bis 20 cm Durchmesser (Astansatz) und nachschneiden von Astausbruchs- oder Kappungsstellen.",25,"St",null,{"$f":"ROUND(E81*G81,2)","v":0},0]
["01.09.02.1520"," ","Entfernen von Starkästen d>20 cm.","Entfernen von kranken, geschädigten, abgestorbenen oder massariabefallenen Starkästen über 20 cm Durchmesser (Astansatz) und nachschneiden von Astausbruchs- oder Kappungsstellen.",25,"St",null,{"$f":"ROUND(E82*G82,2)","v":0},0]
["01.09.02.2510","I","Kronenpflege gemäß ZTV Baumpflege 2017","Kronenpflege gemäß ZTV Baumpflege 2017\nAnmerkung\nDie Kronenpflege schließt die Kontrolle von Platanen hinsichtlich eines Befalls mit Schaderregern, z.B. Massaria in den Baumkronen ein. Zu beachten ist, dass Totholz und durch Schaderreger befallenes Holz in jedem Fall zu entfernen ist. Die Entnahme toter und kranker Äste bis 10 cm Astdurchmesser am Astansatz ist in die Preise einzukalkulieren und wird nicht gesondert vergütet. Starkäste mit größerem Durchmesser werden gemäß der aufgeführten Sonderposition „Einkürzung von Kronenteilen“ zusätzlich vergütet.\n\nVorbeugende Schnittmaßnahmen im Fein- und Schwachastbereich (d=1-5 cm) und Grobastbereich (d=6-10 cm) dienen dem Erhalt eines art- bzw. sortentypischen Erscheinungsbildes.\nErfahrungsgemäß sind durchschnittlich bei Platanen 2-5 Stück Grobäste und bei allen anderen Gattungen1-2 Stück Grobäste je Baum zu entfernen. Diese Werte können im Einzelfall und je nach Kronenmächtigkeit stark nach unten und nach oben schwanken. Das Entfernen von Fein-, Schwach- und Grobästen im Zuge der Kronenpflege bzw. zur Wiederherstellung der Verkehrssicherheit ist als Nebenleistung mit einzukalkulieren.\n\nTote, kranke und im Absterben befindliche Äste, sowie Konkurrenzäste sind zu entfernen. \n\nBei sich kreuzenden und reibenden Ästen bis Schwachastbereich (d=1-5 cm) ist einer zu entfernen.\nNicht zukunftsorientierte Äste bis Grobastbereich (d=1-10 cm) im inneren Kronenbereich sind baumverträglich zu entnehmen, mit dem Ziel die Gesundheit des Baumes zu fördern, indem tote oder schwache Äste entfernt werden, um Platz und Ressourcen für gesündere Zweige zu schaffen.\n\nBereits vorhandene, unfachgerechte Schnitte (Stummel, unregelmäßige Schnittflächen ab Starkaststärke) sind nachzuschneiden. Wundholz oder Kallusbildung dürfen dabei nicht verletzt werden.\n\nAngrenzende Gebäude (Fassade, Dach etc.) sind mindestens 2 m, Wegeflächen, Laternen und Verkehrszeichen 1-2 m freizuhalten, sofern dies baumverträglich, z.B. durch Ableitung auf Versorgungsast, ermöglicht werden kann.\n\nErstellen eines Lichtraumprofils von mindestens 4,5 m im Fahrbahn- und mindestens 2,5 m außerhalb des Fahrbahnbereiches (Gehweg etc.), falls erforderlich sind Stamm- und Stockaustriebe zur Erhaltung oder Wiederherstellung des Lichtraumprofils zu entfernen. Im Fein- und Schwachastbereich (d=1-5 cm) gebildete Schleppen sind über dem Fahrbahnbereich bis zu einer Höhe von 6 bis 7 m, bzw. außerhalb des Fahrbahnbereiches (Gehweg etc.) bis zu einer Höhe von 3 bis 4 m baumverträglich zu entfernen (Abbildung 1).\n\n \nSchleppen vorher\n\n \nSchleppen nachher\n\nWährend eines Pflegeganges dürfen keine direkt neben- oder übereinander liegenden Wunden über 3 cm Durchmesser erzeugt werden. Ausgenommen sind tote, kranke und im Absterben befindliche Äste.\n\nIn der Baumkrone gebildete Reïterate sind auf ihre Anbindung sowie auf ihre statische Auswirkung hinsichtlich ihrer Position im Baum zu überprüfen und ggf. zu entfernen. Hinsichtlich der Funktionsentwicklung des Baumes sind gut angebundene statisch unproblematische Reïterate zukunftsorientiert zu vereinzeln. Darüber hinaus sind gebildete Ständer zur Erhaltung der Verkehrssicherheit zu vereinzeln und einzukürzen. Es ist möglichst auf Versorgungsast abzuleiten. Hierbei sind nebeneinander liegende Schnitte unvermeidbar.\n\nAstausbruchsstellen/Kappungsstellen sind auf Einfaulungen und hinsichtlich Ihrer Statik zu überprüfen und ggf. erneut einzukürzen und fachgerecht auf Zug- oder Versorgungsast abzuleiten. Der Artenschutz muss bei dieser Maßnahme in hohem Grad berücksichtigt werden, z.B. bei vorhandenen Spechtlöchern.\n\nEs muss eine Sichtkontrolle aller relevanten Äste in ihrer Gesamtheit erfolgen. \nNach der Kontrolle der Platanen hinsichtlich eines Krankheitsbefalls, muss dem Auftraggeber durch den FLL-zertifizierten Baumkontrolleur bescheinigt werden, dass befallene Äste entfernt wurden, so dass die Verkehrssicherheit der verbliebenen Äste als gesichert gilt.\n\nSchnittgut geht ins Eigentum des AN über und ist ausschließlich arbeitstäglich zu entsorgen. Im direkten Bereich um Kitas, Schulen und KSP darf das Holz nicht vor Ort gehäckselt werden. Im Kontext des Pflegezustandes müssen die Baustellen sowie die Flächen mit Asthaufen nach dem Abtransport des Schnittgutes in ihren ursprünglichen Zustand zurückversetzt werden.\n\nErschwernisse durch Hanglage, Straßenverkehr, Zäune oder durch andere Hindernisse werden nicht gesondert vergütet.\n\nFeinäste (über 1 cm bis 3 cm) und Schwachäste (über 3 cm bis 5 cm) dürfen nicht mit der Motorsäge abgeschnitten werden, um saubere Schnittstellen zu gewährleisten. Im Rahmen der vorbeugenden Baumpflege kommen also überwiegend handgeführte Sägen zum Einsatz. Starkäste (d über 10 cm) können in Absprache mit der Bauaufsicht entnommen werden, wenn dies im Zusammenhang mit Verkehrssicherungsmaßnahmen erforderlich wird. Hier (und bei der Entfernung von Grobästen) ist der Einsatz von Motorsägen zulässig. Wo möglich ist es vorzuziehen Grob- oder Starkäste nur einzukürzen und nach außen abzuleiten. Das Schneiden von Starkästen wird über entsprechende Leistungspositionen extra abgerechnet.\n\nGrobäste sind gemäß ZTV Baumpflege 2017 Äste mit 5-10 cm Durchmesser. Starkäste haben einen Durchmesser von über 10 cm. Ihre Stärke wird in den Leistungspositionen\nnäher definiert. Bei Entnahme ab Starkaststärke ist die Bauaufsicht über Umfang und Baumnummer zu informieren, z.B. Foto vom Schadbild. Ein Astquerschnitt aus dem Bereich der Astanbindung ist zwecks Aufmaß aufzubewahren.\n\nDie Schadbeurteilung sowie die Schnittmaßnahmen müssen durch geschultes Personal erfolgen. Je eingesetzter Kolonne ist die Fachkunde in der Schadbildbeurteilung durch eine FLL-Zertifizierung als Baumkontrolleur (oder höher-/gleichwertig) und die Fachkunde für durchzuführende Schnittmaßnahmen durch die der Zertifizierung als European Treeworker (ETW) bzw. höher-/gleichwertig nachzuweisen.\nBei Arbeiten in Seilklettertechnik müssen grundsätzlich zwei in Seilklettertechnik ausgebildete Mitarbeiter vor Ort sein, um sowohl das Klettern als auch das nach den Vorgaben der Berufsgenossenschaft vorgeschriebene Sichern des Kletterers gewährleistet werden kann. Beim Klettern sind Kambiumschoner zu verwenden. Steigeisen sind unzulässig.\nEs gelten in besonderem Maße die Bestimmungen der SVLFG Sozialversicherung Landwirtschaft, Forsten, Gartenbau gemäß B09. Demnach muss unter anderem zusätzlich zur allgemeinen betrieblichen Gefährdungsbeurteilung vor Beginn der Arbeiten für jeden einzelnen Baum eine schriftliche, einsatzbezogene Gefährdungsbeurteilung vor Ort erstellt werden.\n\nDer Auftragnehmer benennt der städtischen Bauleitung mindestens einen betrieblich verantwortlichen deutschsprachigen Ansprechpartner (mindestens Sprachlevel \"C1\"), sowie eine Vertretungsperson für Bürger, Behörden und Bauleitung mit Angabe der untertägigen Kontaktdaten auf der Baustelle. Außerdem ist je eingesetzter Kolonne ein deutschsprachiger Mitarbeiter seitens des AN zu stellen, um die Belange der Arbeitssicherheit gewährleisten zu können.\n\nDie Erstellung des Tagesleistungsbeleges zur gerichtsfesten abrechenbaren Leistungsanerkennung der ausgeführten Arbeiten ist gemäß den Vorbemerkungen anzufertigen.\nBei Bereitstellung der App ist der Tagesleistungsbeleg ausschließlich in digitaler Form anzufertigen. Sowohl die analoge, als auch die digitale Variante des Tagesleistungsbeleges beinhaltet die tagesgenaue, einzelbaumbezogene Dokumentation aller erbrachten abrechenbarer Leistungen. Die Variante der analogen Erstellung der Tagesleistungsbelege ist vom zuständigen Vorarbeiter zu unterschreiben, mit Firmenstempel zu versehen und der zuständigen städtischen Bauaufsicht zur Leistungsanerkennung vorzulegen. Der Leistungsnachweis (analog oder digital) ist spätestens am nächsten Arbeitstag nach geleisteter Arbeit einzureichen.",null,null,null,null,0]
["01.09.02.2510","I","Einkürzung von Kronenteilen","„Einkürzung von Kronenteilen“ \ngemäß Abschnitt 0.2.3.1 ZTV-Baumpflege und Anhang A 2 „Begriffsbestimmungen“ ZTV-Baumpflege\nAnmerkung\n„Schnittmaßnahmen an Kronen, die aus Gründen der Verkehrssicherheit oder des Baumumfeldes in Teilbereichen eingekürzt werden müssen, bei Bedarf auch im Grob- und Starkastbereich. Zum Erhalt der artgerechten Kronenstruktur macht diese Maßnahme oft eine Korrektur der gesamten Krone erforderlich.“\n\nAstdurchmesser unter 10 cm sind eher Zweige und Feinverästelungen und zählen nicht zur eigentlich tragenden krone. Sie fallen in den Bereich der leichten Pflege (Kronenpflege oder Auslichtung), haben aber keine entscheidende strukturelle Rolle.\nAstdurchmesser ab 10 cm betreffen tragende Teile der Baumkrone, und eine Einkürzung dieser Äste fällt unter die eigentliche Kroneneinkürzung, die in verschiedenen Stärken (21-50 cm, 51-100 cm und größer) klassifiziert werden können.\n\nEinzelne Äste oder Stämmlinge sind entsprechend der Erfordernisse der Verkehrssicherheit und/oder des Baumumfeldes einzukürzen. Diese Leistungspositionen werden je nach Durchmesser und Länge des zu bearbeitenden Kronenteils vergütet. Der Durchmesser wird am Astansatz gemessen (wie in der nachfolgenden Skizze angegeben). Diese Leistungspositionen werden nur nach Absprache mit der Bauleitung durchgeführt und vergütet.\n\n ",null,null,null,null,0]
["01.09.02.2510"," ","Entfernen von Starkästen d>10-20 cm in SKT.","Entfernen von kranken, geschädigten, abgestorbenen oder massariabefallenen Starkästen über 10 bis 20 cm Durchmesser (Astansatz) und nachschneiden von Astausbruchs- oder Kappungsstellen in Seilklettertechnik.",10,"St",null,{"$f":"ROUND(E85*G85,2)","v":0},0]
["01.09.02.2520"," ","Entfernen von Starkästen d>20 cm in SKT.","Entfernen von kranken, geschädigten, abgestorbenen oder massariabefallenen Starkästen über 20 cm Durchmesser (Astansatz) und nachschneiden von Astausbruchs- oder Kappungsstellen in Seilklettertechnik.",10,"St",null,{"$f":"ROUND(E86*G86,2)","v":0},0]
["01.09.06","3","Baumkronensicherung",null,null,null,null,{"$f":"SUM(H89:H98)","v":0}]
["01.09.06.1010","I","Baumkronensicherung","Baumkronensicherung\nAnmerkung\nSämtliche Arbeiten sind gemäß ZTV-Baum neueste Fassung durchzuführen.\nEs wird darauf hingewiesen, dass die Arbeiten an Bäumen jeglicher Art und an unterschiedlichen Standorten durchgeführt werden müssen. Alle, sich aus dem Geländeverlauf oder Gefällzonen ergebende Erschwernisse oder andere Erschwernisse, wie z. B. Leitungen o. a. werden nicht extra vergütet. Deshalb wird dem Auftragnehmer dringend empfohlen, sich mit den ausgeschriebenen Leistungen vor der Angebotsabgabe vertraut zu machen. Nachforderungen für erschwerende Bedingungen werden vom AG nicht akzeptiert.\nFolgende Leistungen obliegen dem AN, ohne dass sie noch extra in den Einzelpositionen erwähnt werden:\nReinigung des Arbeitsbereiches, laden und abfahren des Räum- und Schnittgutes zur Deponie.\nDer Arbeitgeber verlangt für die Abnahme den Einsatz von technischem Gerät (Hubsteiger, Arbeitsbühne, mechanische Leiter o. a.), wenn keine anderen Forderungen in den speziellen Anmerkungen zum Bauvorhaben gestellt werden.\n\nErfahrungswerte für die Bemessung von dynamischen Kronensicherungssystemen:\n\nDurchmesser Ast/Stämmling\t\tMindestsystembruchlast\nbis 40 cm\t\t\t\t\t\t\t\t2 t\nüber 40 bis 60 cm\t\t\t\t\t\t4 t\nüber 60 bis 80 cm\t\t\t\t\t\t8 t\nüber 80 cm\t\t\t\t\t\t\t\tEinzelfallentscheidung",null,null,null,null,0]
["01.09.06.1010"," ","Einbau einer Bruchsicherung mit mind. 2 t Bruchlast, bis 300 cm.","Lieferung und Einbau einer dynamischen Bruchsicherung aus Hohlseil, UV-beständig gemäß Kapitel 3.2. ZTV-Baumpflege 2016 mit mindestens 2 t Bruchlast mit Überlastanzeiger zur Früherkennung von Schäden am System vom Hubsteiger aus, inkl. Reibeschutz mit Gewebeschlauch.\nLänge der Sicherung: bis 300 cm",1,"St",null,{"$f":"ROUND(E89*G89,2)","v":0},0]
["01.09.06.1020"," ","Einbau einer Bruchsicherung mit mind. 2 t Bruchlast, über 300-600 cm.","Lieferung und Einbau einer dynamischen Bruchsicherung aus Hohlseil, UV-beständig gemäß Kapitel 3.2. ZTV-Baumpflege 2016 mit mindestens 2 t Bruchlast mit Überlastanzeiger zur Früherkennung von Schäden am System vom Hubsteiger aus, inkl. Reibeschutz mit Gewebeschlauch.\nLänge der Sicherung: über 300 cm bis 600 cm",1,"St",null,0,0]
["01.09.06.1030"," ","Einbau einer Bruchsicherung mit mind. 2 t Bruchlast, über 600 cm.","Lieferung und Einbau einer dynamischen Bruchsicherung aus Hohlseil, UV-beständig gemäß Kapitel 3.2. ZTV-Baumpflege 2016 mit mindestens 2 t Bruchlast mit Überlastanzeiger zur Früherkennung von Schäden am System vom Hubsteiger aus, inkl. Reibeschutz mit Gewebeschlauch.\nLänge der Sicherung: über 600 cm",1,"St",null,0,0]
["01.09.06.1040"," ","Einbau einer Bruchsicherung mit mind. 4 t Bruchlast, bis 300 cm.","Lieferung und Einbau einer dynamischen Bruchsicherung aus Hohlseil, UV-beständig gemäß Kapitel 3.2. ZTV-Baumpflege 2016 mit mindestens 4 t Bruchlast mit Überlastanzeiger zur Früherkennung von Schäden am System vom Hubsteiger aus, inkl. Reibeschutz mit Gewebeschlauch.\nLänge der Sicherung: bis 300 cm",1,"St",null,0,0]
["01.09.06.1050"," ","Einbau einer Bruchsicherung mit mind. 4 t Bruchlast, über 300-600 cm.","Lieferung und Einbau einer dynamischen Bruchsicherung aus Hohlseil, UV-beständig gemäß Kapitel 3.2. ZTV-Baumpflege 2016 mit mindestens 4 t Bruchlast mit Überlastanzeiger zur Früherkennung von Schäden am System vom Hubsteiger aus, inkl. Reibeschutz mit Gewebeschlauch.\nLänge der Sicherung: über 300 cm bis 600 cm",1,"St",null,0,0]
["01.09.06.1060"," ","Einbau einer Bruchsicherung mit mind. 4 t Bruchlast, über 600 cm.","Lieferung und Einbau einer dynamischen Bruchsicherung aus Hohlseil, UV-beständig gemäß Kapitel 3.2. ZTV-Baumpflege 2016 mit mindestens 4 t Bruchlast mit Überlastanzeiger zur Früherkennung von Schäden am System vom Hubsteiger aus, inkl. Reibeschutz mit Gewebeschlauch.\nLänge der Sicherung: über 600 cm",1,"St",null,0,0]
["01.09.06.1070"," ","Einbau einer Bruchsicherung mit mind. 8 t Bruchlast, bis 300 cm.","Lieferung und Einbau einer dynamischen Bruchsicherung aus Hohlseil, UV-beständig gemäß Kapitel 3.2. ZTV-Baumpflege 2016 mit mindestens 8 t Bruchlast mit Überlastanzeiger zur Früherkennung von Schäden am System vom Hubsteiger aus, inkl. Reibeschutz mit Gewebeschlauch.\nLänge der Sicherung: bis 300 cm",1,"St",null,0,0]
["01.09.06.1080"," ","Einbau einer Bruchsicherung mit mind. 8 t Bruchlast, über 300-600 cm.","Lieferung und Einbau einer dynamischen Bruchsicherung aus Hohlseil, UV-beständig gemäß Kapitel 3.2. ZTV-Baumpflege 2016 mit mindestens 8 t Bruchlast mit Überlastanzeiger zur Früherkennung von Schäden am System vom Hubsteiger aus, inkl. Reibeschutz mit Gewebeschlauch.\nLänge der Sicherung: über 300 cm bis 600 cm",1,"St",null,0,0]
["01.09.06.1090"," ","Einbau einer Bruchsicherung mit mind. 8 t Bruchlast, über 600 cm.","Lieferung und Einbau einer dynamischen Bruchsicherung aus Hohlseil, UV-beständig gemäß Kapitel 3.2. ZTV-Baumpflege 2016 mit mindestens 8 t Bruchlast mit Überlastanzeiger zur Früherkennung von Schäden am System vom Hubsteiger aus, inkl. Reibeschutz mit Gewebeschlauch.\nLänge der Sicherung: über 600 cm",1,"St",null,0,0]
["01.09.06.1100"," ","Einbau einer Tragsicherung mit mind. 4 t Bruchlast, über 600 cm.","Lieferung und Einbau einer Tragsicherung aus Hohlseil, UV-beständig gemäß Kapitel 3.2. ZTV-Baumpflege 2016 mit mindestens 4 t Bruchlast vom Hubsteiger aus, inkl. Reibeschutz mit Gewebeschlauch.\nLänge der Sicherung: über 600 cm",1,"St",null,0,0]
["02","1","Teillos 2-Friedhöfe",null,null,null,null,{"$f":"SUM(H103:H105)+SUM(H108:H108)+SUM(H111:H149)+SUM(H154:H181)+SUM(H184:H192)","v":0}]
["02.01","2","Baustellenvorbereitung",null,null,null,null,{"$f":"SUM(H103:H105)+SUM(H108:H108)+SUM(H111:H149)","v":0}]
["02.01.01","3","Baustelleneinrichtung",null,null,null,null,{"$f":"SUM(H103:H105)","v":0}]
["02.01.01.1010","I","Arbeitsstellensicherung","Arbeitsstellensicherung\nEinholung verkehrsrechtlicher Anordnungen gemäß § 45 Abs. 6 der Straßenverkehrsordnung\nAnmerkung\n\nVor der Durchführung von Arbeiten, die sich auf den Straßenverkehr auswirken, sind gemäß § 45 Abs. 6 der Straßenverkehrsordnung von der zuständigen Behörde verkehrsrechtliche Anordnungen über die Absperrung und Kennzeichnung der einzelnen Arbeitsstellen einzuholen. Hierbei ist zu beachten, dass in der Regel zur Vorbereitung der verkehrsrechtlichen Genehmigungen im Vorfeld ein Ortstermin mit einem Vertreter der genehmigenden Ordnungsbehörde stattfinden muss, um den jeweiligen Begebenheiten wie Anzahl der Fahrstreifen, eventuell vorhandener Parkstreifen, Bürgersteigbreite, etc. Rechnung tragen zu können. Bei der fachgerechten Erstellung des prüffähigen Beschilderungsplanes auf Basis von detaillierten Grundkarten (diese können bei Bedarf beim Amt für Geoinformation und Kataster der Stadt Essen erworben oder kostenlos über das Geodatenportal des Landes NRW (www.geoportal.nrw) bezogen werden) sind darüber hinaus u.a. die Unfallverhütungsvorschriften, die Bestimmungen der Berufsgenossenschaften, sowie das Straßenverkehrsrecht zu beachten.\n\nAufgrund der örtlichen und zeitlichen Gegebenheiten sind die Einrichtungen und Sicherungen der Baustellen von höchster Priorität. Den rechtlich normierten Vorgaben des Amtes für Straßen und Verkehr ist in vollem Umfang und ohne Abweichungen Folge zu leisten. Dabei sind folgende Verordnungen bzw. Richtlinien anzuwenden:\n-Straßenverkehrsordnung (STVO)\n-Richtlinien für die Sicherung von Arbeitstätten an\n Straßen (RSA) in der jeweils neuesten gültigen Fassung\n-Zusätzliche Technische Vertragsbedingungen und\n Richtlinien für Sicherungsarbeiten an Arbeitsstellen\n an Straßen (ZTV-SA 97)\n-Richtlinien für die Markierung von Straßen (RMS)\n-Technische Lieferbedingungen (TL) des\n Bundesministeriums für Verkehr und digitale\n Infrastruktur (BMVI) für das eingesetzte Material\n-Sämtliche Verkehrszeichen usw. müssen gem. DIN 67520\n voll reflektierend sein und das RAL-Gütezeichen der\n Güteschutzgemeinschaft Verkehrszeichen tragen, die zu\n verwendende Schriftart muss der DIN 1451 entsprechen\n-MVAS geschultes Personal als Voraussetzung\n\nSofern dem Auftragnehmer kein MVAS-geschultes Personal zur Verfügung steht und/oder die Anforderungen der genannten Vorschriften nicht selbst geleistet werden können, ist ein geeignetes Verkehrssicherungsunternehmen durch den Auftragnehmer mit o.g. Aufgaben zu beauftragen. Entstehende Kosten durch Einrichtungen und Sicherungen der Baustellen sowie der organisatorische Aufwand sind in den Angebotspreis der nachfolgenden Pauschalposition über die Sicherung der Baustelle(n) mit einzukalkulieren.\n\nAlle notwendigen Maßnahmen, Materialgestellungen und Zeitaufwendungen zur Vorbereitung von Arbeiten, die sich auf den Straßenverkehr auswirken, sind selbstständig vom Auftragnehmer vorzunehmen und in der Angebotserstellung zu berücksichtigen. Dies umfasst u.a.\n-die Vorsichtung von Bäumen, Flächen und\n Arbeitsbereichen\n-ggf. die Durchführung von Ortsterminen, die in der\n Regel bei Straßen mit besonderem Koordinierungsbedarf\n („KOST“-Straßen) erforderlich sind\n-das Einholen von Genehmigungen (verkehrsrechtliche\n Anordnungen)\n-die ordnungsgemäße Sicherung der Baustellen\n-Absprachen mit weiteren Ordnungsbehörden (z.B.\n Ordnungsamt)\n\nDie Aufwendungen unterscheiden sich z.B. für:\n1. Arbeitsstellen an/auf verkehrswichtigen Essener\n    Straßen („KOST“-Straßen), im unmittelbaren\n    Bereich (35 m) von Lichtzeichenanlagen,\n    Querungshilfen, Bushaltestellen,\n    Straßeneinmündungen oder in unübersichtlichen\n    Kurvenbereichen, wo der entgegenkommende Verkehr\n    nicht eingesehen werden kann\n2. Arbeitsstellen außerhalb von verkehrswichtigen\n    Essener Straßen (\"KOST-Straßen\"), außerhalb der\n    unmittelbaren Bereiche zu 1. und bei\n    übersichtlicher Verkehrssituation.\n\nBei Arbeitsstellen zu 1. sind rechtzeitig vor der beabsichtigten Maßnahme (im Regelfall 4-5 Wochen vorher) verkehrsrechtliche Anordnungen zu beantragen. Bereits vor der Beantragung ist eine Kontaktaufnahme mit der Straßenverkehrsbehörde-Fachbereich 66-5/Baustellenmanagement zur Vereinbarung eines Ortstermins zu empfehlen (aktuelles Telefonverzeichnis siehe Anlage).\n\nBei Arbeiten außerhalb von verkehrswichtigen Essener Straßen (\"KOST-Straßen\"), in einer Entfernung von mindestens 35 m zu stationären Lichtzeichenanlagen, muss ein Zeitrahmen von etwa 3 Wochen vor Arbeitsbeginn zur Erlangung der verkehrsrechtlichen Anordnung eingeplant werden. \nFür diese Straßen kann mit entsprechendem Eignungsnachweis bei der Straßenverkehrsbehörde eine Jahresgenehmigung zur Durchführung eines vereinfachten Genehmigungsverfahrens beantragt werden. \nSofern eine Jahresgenehmigung der Straßenverkehrsbehörde vorliegt, werden von dort für verschiedene einfachere Verkehrssituationen Regelbeschilderungspläne zur Verfügung gestellt. Die Jahresgenehmigung berücksichtigt auch nachfolgende Pflegegänge (z.B. Bewässerungseinsätze).\nIm Rahmen des v.g. vereinfachten Genehmigungsverfahrens sind vor der Durchführung der eigentlichen Arbeiten die jeweiligen Arbeitsstellen anzumelden (mind. 5 Arbeitstage vorher per Fax). Neben den Angaben zu der ausführenden Firma und des verantwortlichen Bauleiters müssen die Anmeldungen Angaben zur Arbeitsstelle und zum Arbeitsstellenbereich, zum Beginn und der voraussichtlichen Dauer sowie des anzuwendenden Regelplans beinhalten. Mit der Einrichtung der Arbeitsstelle und den Arbeiten, die sich auf den Straßenverkehr auswirken, darf grundsätzlich erst dann begonnen werden, wenn die Anmeldung zuvor ausdrücklich durch die Behörde genehmigt wurde.\nDie verkehrsrechtliche Anordnung als behördlich dokumentiertes Ergebnis des Genehmigungsverfahrens beinhaltet stets den individuellen oder bei vereinfachten Verfahren den jeweiligen Regelbeschilderungsplan.\n\nDie Gebühren der verkehrsrechtlichen Anordnung sind in Abhängigkeit von Qualität und Antragsfristen gestaffelt.\n\nArbeiten auf Hauptverkehrsstraßen:\nDer Auftragnehmer hat bei Arbeiten auf einer Hauptverkehrsstraße die Koordinierungsstelle für Straßenbaumaßnahmen (KOST) im Amt für Straßen und Verkehr (Fachbereich 66) zu beteiligen.\nAlle Informationen über Verkehrsbeeinträchtigungen sind an die KOST weiterzuleiten. Die KOST ist zu Verkehrsterminen einzuladen.\nBaubeginn und Bauende sind mit einem Vorlauf von zwei Werktagen der KOST mitzuteilen.\nKOST Tel.: 0201/8866-530, -531, -535\nKOST Fax: 0201/8866-529, -539\n\nArbeiten mit oder an Lichtsignalanlagen:\nDer Auftragnehmer hat bei Arbeiten an oder im Bereich von stationären Lichtsignalanlagen das Amt für Straßen und Verkehr (Abt. 66-2-2) zu beteiligen und zu den entsprechenden Ortsterminen einzuladen.\nAbt. 66-2-2 Tel.: 0201/8866-230, -232, -233, -234, -235, -236\nAbt. 66-2-2 Fax: 0201/8866-231",null,null,null,null,0]
["02.01.01.1010"," ","Sicherung der Baustelle(n)","Die Sicherheitsvorschriften der Berufsgenossenschaften sind zu beachten. Die Baustellen sind nach den \"Richtlinien für die Sicherung von Arbeitsstellen an Straßen (RSA)\" abzusichern. Hierfür notwendige Vorrichtungen (z.B. Absperrungen, Schutzgerüste, Warnleuchten, Blenden, Schilder, fahrbare, beleuchtete Absperrtafeln,...) sind vom AN zu stellen, vorzuhalten und nach Abschluss der Arbeiten zu beseitigen.\nIn dieser Pauschalposition wird der Gesamtaufwand des Auftragnehmers für das Liefern, Aufstellen, Vorhalten und Umsetzen sämtlicher Beschilderungen nach den Vorgaben der Beschilderungspläne der verkehrsrechtlichen Anordnungen aller Baustellen (für die Gesamtheit aller genehmigten Bauabschnitte) innerhalb der Ausschreibung bzw. für das vorliegende Los einmalig vergütet.",1,"psch",null,{"$f":"ROUND(E103*G103,2)","v":0},0]
["02.01.01.1020"," ","Vergütung des Aufwands zur Erlangung d. verkehrsrechtlichen Anordnung.","Der organisatorische Aufwand des Auftragnehmers zum Erlangen der verkehrsrechtlichen Anordnung wird durch den Einheitspreis dieser Position abgegolten. Dazu ist der Nachweis der eingeholten Genehmigungen erforderlich und muss mit der Rechnungsstellung beigefügt werden. Erhöhte Aufwendungen aufgrund der Nichteinhaltung des geforderten Zeitplans können nicht vergütet werden.\nEs ist bei der Kalkulation zu berücksichtigen, dass eventuell für jede Einzelgenehmigung ein Ortstermin mit der Verkehrsbehörde erforderlich ist. Die Bauleitung ist darüber zu informieren, indem entweder bei der Beantragung der verkehrsrechtlichen Anordnung (per E-Mail) bei der zuständigen Behörde die Bauleitung in CC gesetzt wird oder der Nachweis der eingeholten Genehmigungen der Bauleitung nachgereicht wird.",3,"St",null,{"$f":"ROUND(E104*G104,2)","v":0},0]
["02.01.01.1030","E","Erstattung der Gebühr für die verkehrsrechtliche Anordnung.","Für die verkehrsrechtlichen Anordnungen der Tagesbaustellen werden Gebühren erhoben. Diese Gebühren müssen zunächst vom Auftragnehmer vorfinanziert werden. Gegen Vorlage der Rechnung des Amtes für Straßen und Verkehr, werden dem Auftragnehmer diese Gebühren 1:1 im Zuge der Abschlagszahlungen erstattet. Die Abrechnung erfolgt über diese Leistungsposition, die bei der Angebotswertung jedoch nicht berücksichtigt wird. Es werden nur Gebühren für tatsächlich ausgeführte verkehrsrechtliche Anordnungen erstattet.\nBei dem vorgegebenen Wert handelt es sich um einen geschätzten Mittelwert.",3,"St",null,null,0]
["02.01.03","3","Baustraßen-Bauwege",null,null,null,null,{"$f":"SUM(H108:H108)","v":0}]
["02.01.03.3020","I","Sicherung vorhandener Wegebeläge oder sonstiger Flächen","Sicherung vorhandener Wegebeläge oder sonstiger Flächen\nAnmerkung\nVorhandene Wegebeläge oder sonstige Flächen sind mithilfe von befahrbaren Schutzplatten und einem Schutzvlies oder Baggermatratzen/-matten vor Beschädigungen beim Überfahren zu sichern.",null,null,null,null,0]
["02.01.03.3020"," ","Mobile Baustraße herstellen.","Mobile Baustraße mit lastverteilenden Hochleistungs-Bodenschutzplatten aus Kunststoff herstellen und für die Dauer der Baumaßnahme vorhalten. Maximales Fahrzeuggewicht 7,5 t, Fahrspurbreite mindestens 122 cm je Spur. Platten werden verschiebesicher mit Bodenanker und Verbindern aufgebaut, inkl. Lieferung aller Materialien. Rutschhemmende Oberfläche, mit einer Profilstärke von\n8 mm für maximale Traktion, in Längsrichtung und Querrichtung.\nDas mehrmalige Verlegen der Baustraße je nach Baufortschritt ist einzukalkulieren.\nAbrechnung nach Meter verlegter Doppelspur.",200,"m",null,{"$f":"ROUND(E108*G108,2)","v":0},0]
["02.01.06","3","Baumfällarbeiten",null,null,null,null,{"$f":"SUM(H111:H149)","v":0}]
["02.01.06.1010","I","Bäume fällen ohne Roden der Wurzelstöcke.","Bäume fällen ohne Roden der Wurzelstöcke\nAnmerkung\nDer Fällschnitt muss so oberflächennah wie möglich angesetzt werden, wenn in den Leistungspositionen oder der Vorbemerkung nichts anderes gefordert wird.\nDas anfallende Stamm- und Astholz wird Eigentum des AN und ist arbeitstäglich abzufahren, wenn nichts anderes im Leistungsverzeichnis gefordert wird.\nVorhalten von Arbeits- und Transportgeräten sowie Gestellung von Arbeitskräften. Schutz- und Sicherheitsmaßnahmen nach den Unfallverhütungs- und den ordnungsbehördlichen Vorschriften treffen. Dieses sind Nebenleistungen ohne gesonderte Vergütung.\nGemessen wird der Stammdurchmesser in 1 Meter Höhe über Boden- bzw. Planumhöhe. Das Aufmaß erfolgt vor Arbeitsbeginn nach Stückzahl.\nBei Reststämmen wird der Stammdurchmesser an der vorhandenen Schnittstelle gemessen.\n\nFür mit Rußrindenkrankheit befallene Bäume gilt:\nAlle befallenen Bäume sind komplett zu entfernen.\nDiese sind vor Ort mit der Kennzeichnung R/X/laufende Nummer in Magentarot markiert und werden dem Auftragnehmer durch die Bauleitung gesondert gemeldet. Siehe hierzu Abarbeitungsliste.\nEine Bürgerinformation bezüglich der Arbeiten und damit verbundenen Verhaltensweisen (geschlossene Fenster) erfolgt über die Bauüberwachung des Auftraggebers.\nEs wird zum Schutz des eingesetzten Baumpflegepersonals vorgegeben, Einweg-Schutzanzüge (gegen Stäube) und Partikel-Atemmasken der Schutzklasse P3 mit Ausatemventil zu tragen. Die zusätzlich notwendige PSA ist durch den Auftragnehmer zu stellen und in die Einzelpreise einzukalkulieren.\nDie Bäume sind abschnittsweise zu fällen, das Schnittgut ist ohne vorheriges Häckseln in Container oder Transportfahrzeuge mit Abdeckung zu laden.",null,null,null,null,0]
["02.01.06.1010"," ","Bäume fällen, Stammdurchmesser: 0-10 cm.","Bäume fällen.\nStammdurchmesser: bis 10 cm.",4,"St",null,{"$f":"ROUND(E111*G111,2)","v":0},0]
["02.01.06.1020"," ","Bäume fällen, Stammdurchmesser: 11-20 cm.","Bäume fällen.\nStammdurchmesser: über 11 cm bis 20 cm.",10,"St",null,0,0]
["02.01.06.1030"," ","Bäume fällen, Stammdurchmesser: 21-30 cm.","Bäume fällen.\nStammdurchmesser: über 20 cm bis 30 cm.",10,"St",null,0,0]
["02.01.06.1040"," ","Bäume fällen, Stammdurchmesser: 31-40 cm.","Bäume fällen.\nStammdurchmesser: über 30 cm bis 40 cm.",10,"St",null,0,0]
["02.01.06.1050"," ","Bäume fällen, Stammdurchmesser: 41-50 cm.","Bäume fällen.\nStammdurchmesser: über 40 cm bis 50 cm.",10,"St",null,0,0]
["02.01.06.1060"," ","Bäume fällen, Stammdurchmesser: 51-60 cm.","Bäume fällen.\nStammdurchmesser: über 50 cm bis 60 cm.",10,"St",null,0,0]
["02.01.06.1070"," ","Bäume fällen, Stammdurchmesser: 61-70 cm.","Bäume fällen.\nStammdurchmesser: über 60 cm bis 70 cm.",6,"St",null,0,0]
["02.01.06.1080"," ","Bäume fällen, Stammdurchmesser: 71-80 cm.","Bäume fällen.\nStammdurchmesser: über 70 cm bis 80 cm.",6,"St",null,0,0]
["02.01.06.1090"," ","Bäume fällen, Stammdurchmesser: 81-90 cm.","Bäume fällen.\nStammdurchmesser: über 80 cm bis 90 cm.",6,"St",null,0,0]
["02.01.06.1100"," ","Bäume fällen, Stammdurchmesser: 91-100 cm.","Bäume fällen.\nStammdurchmesser: über 90 cm bis 100 cm.",6,"St",null,0,0]
["02.01.06.1110"," ","Bäume fällen, Stammdurchmesser: 101-110 cm.","Bäume fällen.\nStammdurchmesser: über 100 cm bis 110 cm.",6,"St",null,0,0]
["02.01.06.1120"," ","Bäume fällen, Stammdurchmesser: 111-120 cm.","Bäume fällen.\nStammdurchmesser: über 110 cm bis 120 cm.",2,"St",null,0,0]
["02.01.06.1130"," ","Bäume fällen, Stammdurchmesser: 121-130 cm.","Bäume fällen.\nStammdurchmesser: über 120 cm bis 130 cm.",2,"St",null,0,0]
["02.01.06.1140"," ","Bäume fällen, Stammdurchmesser: 131-140 cm.","Bäume fällen.\nStammdurchmesser: über 130 cm bis 140 cm.",2,"St",null,0,0]
["02.01.06.1150"," ","Bäume fällen, Stammdurchmesser: 141-150 cm.","Bäume fällen.\nStammdurchmesser: über 140 cm bis 150 cm.",2,"St",null,0,0]
["02.01.06.1160"," ","Bäume fällen, Stammdurchmesser: 151-160 cm.","Bäume fällen.\nStammdurchmesser: über 150 cm bis 160 cm.",2,"St",null,0,0]
["02.01.06.1170"," ","Bäume fällen, Stammdurchmesser: 161-170 cm.","Bäume fällen.\nStammdurchmesser: über 160 cm bis 170 cm.",2,"St",null,0,0]
["02.01.06.1180"," ","Bäume fällen, Stammdurchmesser: 171-180 cm.","Bäume fällen.\nStammdurchmesser: über 170 cm bis 180 cm.",2,"St",null,0,0]
["02.01.06.2010","I","Bäume fällen mit Roden der Wurzelstöcke.","Bäume fällen mit Roden bzw. Ausfräsen der Wurzelstöcke Anmerkung\nDas anfallende Stamm-, Astholz und die Wurzelstöcke sind arbeitstäglich abzufahren, wenn nichts anderes im Leistungstext gefordert wird.\nEntstandene Löcher mit Boden gemäß DIN 18915, Bodengruppe 3 bis 4, auf Planumhöhe verfüllen und verdichten.\nVorhalten von Arbeits- und Transportgeräten sowie Gestellung von Arbeitskräften. Schutz- und Sicherungsmaßnahmen nach den Unfallverhütungs- und Polizei- und Ordnungsvorschriften treffen. Dieses sind Nebenleistungen ohne gesonderte Vergütung.\nGemessen wird der Stammdurchmesser 1 Meter über Planumhöhe. Das Aufmaß erfolgt vor dem Arbeitsbeginn nach Stückzahl.",null,null,null,null,0]
["02.01.06.2010"," ","Bäume roden, Stammdurchmesser: 0-10 cm.","Bäume fällen mit vollständiger Entfernung der Wurzelstöcke.\nStammdurchmesser: über 0 cm bis 10 cm.",10,"St",null,{"$f":"ROUND(E130*G130,2)","v":0},0]
["02.01.06.2020"," ","Bäume roden, Stammdurchmesser: 11-20 cm.","Bäume fällen mit vollständiger Entfernung der Wurzelstöcke.\nStammdurchmesser: über 11 cm bis 20 cm.",20,"St",null,0,0]
["02.01.06.2030"," ","Bäume roden, Stammdurchmesser: 21-30 cm.","Bäume fällen mit vollständiger Entfernung der Wurzelstöcke.\nStammdurchmesser: über 20 cm bis 30 cm.",30,"St",null,0,0]
["02.01.06.2040"," ","Bäume roden, Stammdurchmesser: 31-40 cm.","Bäume fällen mit vollständiger Entfernung der Wurzelstöcke.\nStammdurchmesser: über 30 cm bis 40 cm.",30,"St",null,0,0]
["02.01.06.2050"," ","Bäume roden, Stammdurchmesser: 41-50 cm.","Bäume fällen mit vollständiger Entfernung der Wurzelstöcke.\nStammdurchmesser: über 40 cm bis 50 cm.",20,"St",null,0,0]
["02.01.06.2060"," ","Bäume roden, Stammdurchmesser: 51-60 cm.","Bäume fällen mit vollständiger Entfernung der Wurzelstöcke.\nStammdurchmesser: über 50 cm bis 60 cm.",20,"St",null,0,0]
["02.01.06.2070"," ","Bäume roden, Stammdurchmesser: 61-70 cm.","Bäume fällen mit vollständiger Entfernung der Wurzelstöcke.\nStammdurchmesser: über 60 cm bis 70 cm.",15,"St",null,0,0]
["02.01.06.2080"," ","Bäume roden, Stammdurchmesser: 71-80 cm.","Bäume fällen mit vollständiger Entfernung der Wurzelstöcke.\nStammdurchmesser: über 70 cm bis 80 cm.",15,"St",null,0,0]
["02.01.06.2090"," ","Bäume roden, Stammdurchmesser: 81-90 cm.","Bäume fällen mit vollständiger Entfernung der Wurzelstöcke.\nStammdurchmesser: über 80 cm bis 90 cm.",5,"St",null,0,0]
["02.01.06.2100"," ","Bäume roden, Stammdurchmesser: 91-100 cm.","Bäume fällen mit vollständiger Entfernung der Wurzelstöcke.\nStammdurchmesser: über 90 cm bis 100 cm.",5,"St",null,0,0]
["02.01.06.2110"," ","Bäume roden, Stammdurchmesser: 101-110 cm.","Bäume fällen mit vollständiger Entfernung der Wurzelstöcke.\nStammdurchmesser: über 100 cm bis 110 cm.",5,"St",null,0,0]
["02.01.06.2120"," ","Bäume roden, Stammdurchmesser: 111-120 cm.","Bäume fällen mit vollständiger Entfernung der Wurzelstöcke.\nStammdurchmesser: über 110 cm bis 120 cm.",2,"St",null,0,0]
["02.01.06.2130"," ","Bäume roden, Stammdurchmesser: 121-130 cm.","Bäume fällen mit vollständiger Entfernung der Wurzelstöcke.\nStammdurchmesser: über 120 cm bis 130 cm.",2,"St",null,0,0]
["02.01.06.2140"," ","Bäume roden, Stammdurchmesser: 131-140 cm.","Bäume fällen mit vollständiger Entfernung der Wurzelstöcke.\nStammdurchmesser: über 130 cm bis 140 cm.",2,"St",null,0,0]
["02.01.06.2150"," ","Bäume roden, Stammdurchmesser: 141-150 cm.","Bäume fällen mit vollständiger Entfernung der Wurzelstöcke.\nStammdurchmesser: über 140 cm bis 150 cm.",2,"St",null,0,0]
["02.01.06.2160"," ","Bäume roden, Stammdurchmesser: 151-160 cm.","Bäume fällen mit vollständiger Entfernung der Wurzelstöcke.\nStammdurchmesser: über 150 cm bis 160 cm.",2,"St",null,0,0]
["02.01.06.2170"," ","Bäume roden, Stammdurchmesser: 161-170 cm.","Bäume fällen mit vollständiger Entfernung der Wurzelstöcke.\nStammdurchmesser: über 160 cm bis 170 cm.",2,"St",null,0,0]
["02.01.06.2180"," ","Bäume roden, Stammdurchmesser: 171-180 cm.","Bäume fällen mit vollständiger Entfernung der Wurzelstöcke.\nStammdurchmesser: über 170 cm bis 180 cm.",2,"St",null,0,0]
["02.01.06.2190"," ","Bäume roden, Stammdurchmesser: 181-190 cm.","Bäume fällen mit vollständiger Entfernung der Wurzelstöcke.\nStammdurchmesser: über 180 cm bis 190 cm.",2,"St",null,0,0]
["02.01.06.2200"," ","Bäume roden, Stammdurchmesser: 191-200 cm.","Bäume fällen mit vollständiger Entfernung der Wurzelstöcke.\nStammdurchmesser: über 190 cm bis 200 cm.",2,"St",null,0,0]
["02.09","2","Pflege",null,null,null,null,{"$f":"SUM(H154:H181)+SUM(H184:H192)","v":0}]
["02.09.02","3","Baumschnitt-Kronenschnitt",null,null,null,null,{"$f":"SUM(H154:H181)","v":0}]
["02.09.02.1010","I","Baumschnitt-Kronenschnitt","Baumschnitt-Kronenschnitt\nAnmerkung\nAlle Schnittarbeiten sind entsprechend den Anforderungen der ZTV Baum 2017 durchzuführen.\nInsbesondere wird auf die Begriffsbestimmungen des\nAbs. 1.2 verwiesen. Die Ausführungshinweise des\nAbs. 3.1 sind zu beachten.\n\nBei Arbeiten in Seilklettertechnik müssen grundsätzlich zwei in Seilklettertechnik ausgebildete Mitarbeiter vor Ort sein, damit sowohl das Klettern als auch das nach den Vorgaben der Berufsgenossenschaft vorgeschriebene Sichern des Kletterers gewährleistet ist.\n\nDie Schadbeurteilung sowie die Schnittmaßnahmen müssen durch geschultes Personal erfolgen. Es ist die Fachkunde in der Schadbildbeurteilung durch eine FLL-Zertifizierung als Baumkontrolleur (oder höher-/gleichwertig) nachzuweisen.\nDie Fachkunde für durchzuführende Schnittmaßnahmen ist durch den Nachweis der Zertifizierung als European Treeworker (ETW) bzw. höher-/gleichwertig nachzuweisen.\n\nDie Kontrolle von vorhandenen Kronensicherungen gehört mit zur Leistung und wird nicht gesondert vergütet.\n\nDas Befahren des unbefestigten, durchwurzelbaren Raumes ist zu unterlassen. Es sind Sonderarbeitsverfahren anzuwenden.\n(Durchwurzelbarer Raum = Kronentraufe + 2 m)\n\nDas Befahren von Grünflächen ist grundsätzlich untersagt. Erforderliche Transportwege über Gehwegflächen sind mit der Bauleitung zu vereinbaren. Beschädigungen und Verschmutzungen sind zu vermeiden. Es haftet der Auftragnehmer. Vom Auftragnehmer verursachte Schäden an Wegen, vegetationstechnischen oder sonstigen Einrichtungs- oder Ausstattungsgegenständen sind von diesem auf eigene Kosten wieder instandzusetzen.\n\nHinweis:\nBei den Mengenangaben zum Entfernen von Starkästen über 10 cm Durchmesser am Astansatz (\"Einkürzen von Kronenteilen\") handelt es sich um Schätzungen. Abgerechnet werden die tatsächlich entfernten Äste nach gemeinsamem Aufmaß mit Vertretern des Auftragnehmers und Auftraggebers.\n\nSchnittführung nach ZTV Baum:\n",null,null,null,null,0]
["02.09.02.1010","I","Kronenpflege gemäß ZTV Baumpflege 2017","Kronenpflege gemäß ZTV Baumpflege 2017\nAnmerkung\nDie Kronenpflege schließt die Kontrolle von Platanen hinsichtlich eines Befalls mit Schaderregern, z.B. Massaria in den Baumkronen ein. Zu beachten ist, dass Totholz und durch Schaderreger befallenes Holz in jedem Fall zu entfernen ist. Die Entnahme toter und kranker Äste bis 10 cm Astdurchmesser am Astansatz ist in die Preise einzukalkulieren und wird nicht gesondert vergütet. Starkäste mit größerem Durchmesser werden gemäß der aufgeführten Sonderposition „Einkürzung von Kronenteilen“ zusätzlich vergütet.\n\nVorbeugende Schnittmaßnahmen im Fein- und Schwachastbereich (d=1-5 cm) und Grobastbereich (d=6-10 cm) dienen dem Erhalt eines art- bzw. sortentypischen Erscheinungsbildes.\nErfahrungsgemäß sind durchschnittlich bei Platanen 2-5 Stück Grobäste und bei allen anderen Gattungen1-2 Stück Grobäste je Baum zu entfernen. Diese Werte können im Einzelfall und je nach Kronenmächtigkeit stark nach unten und nach oben schwanken. Das Entfernen von Fein-, Schwach- und Grobästen im Zuge der Kronenpflege bzw. zur Wiederherstellung der Verkehrssicherheit ist als Nebenleistung mit einzukalkulieren.\n\nTote, kranke und im Absterben befindliche Äste, sowie Konkurrenzäste sind zu entfernen. \n\nBei sich kreuzenden und reibenden Ästen bis Schwachastbereich (d=1-5 cm) ist einer zu entfernen.\nNicht zukunftsorientierte Äste bis Grobastbereich (d=1-10 cm) im inneren Kronenbereich sind baumverträglich zu entnehmen, mit dem Ziel die Gesundheit des Baumes zu fördern, indem tote oder schwache Äste entfernt werden, um Platz und Ressourcen für gesündere Zweige zu schaffen.\n\nBereits vorhandene, unfachgerechte Schnitte (Stummel, unregelmäßige Schnittflächen ab Starkaststärke) sind nachzuschneiden. Wundholz oder Kallusbildung dürfen dabei nicht verletzt werden.\n\nAngrenzende Gebäude (Fassade, Dach etc.) sind mindestens 2 m, Wegeflächen, Laternen und Verkehrszeichen 1-2 m freizuhalten, sofern dies baumverträglich, z.B. durch Ableitung auf Versorgungsast, ermöglicht werden kann.\n\nErstellen eines Lichtraumprofils von mindestens 4,5 m im Fahrbahn- und mindestens 2,5 m außerhalb des Fahrbahnbereiches (Gehweg etc.), falls erforderlich sind Stamm- und Stockaustriebe zur Erhaltung oder Wiederherstellung des Lichtraumprofils zu entfernen. Im Fein- und Schwachastbereich (d=1-5 cm) gebildete Schleppen sind über dem Fahrbahnbereich bis zu einer Höhe von 6 bis 7 m, bzw. außerhalb des Fahrbahnbereiches (Gehweg etc.) bis zu einer Höhe von 3 bis 4 m baumverträglich zu entfernen (Abbildung 1).\n\n \nSchleppen vorher\n\n \nSchleppen nachher\n\nWährend eines Pflegeganges dürfen keine direkt neben- oder übereinander liegenden Wunden über 3 cm Durchmesser erzeugt werden. Ausgenommen sind tote, kranke und im Absterben befindliche Äste.\n\nIn der Baumkrone gebildete Reïterate sind auf ihre Anbindung sowie auf ihre statische Auswirkung hinsichtlich ihrer Position im Baum zu überprüfen und ggf. zu entfernen. Hinsichtlich der Funktionsentwicklung des Baumes sind gut angebundene statisch unproblematische Reïterate zukunftsorientiert zu vereinzeln. Darüber hinaus sind gebildete Ständer zur Erhaltung der Verkehrssicherheit zu vereinzeln und einzukürzen. Es ist möglichst auf Versorgungsast abzuleiten. Hierbei sind nebeneinander liegende Schnitte unvermeidbar.\n\nAstausbruchsstellen/Kappungsstellen sind auf Einfaulungen und hinsichtlich Ihrer Statik zu überprüfen und ggf. erneut einzukürzen und fachgerecht auf Zug- oder Versorgungsast abzuleiten. Der Artenschutz muss bei dieser Maßnahme in hohem Grad berücksichtigt werden, z.B. bei vorhandenen Spechtlöchern.\n\nEs muss eine Sichtkontrolle aller relevanten Äste in ihrer Gesamtheit erfolgen. \nNach der Kontrolle der Platanen hinsichtlich eines Krankheitsbefalls, muss dem Auftraggeber durch den FLL-zertifizierten Baumkontrolleur bescheinigt werden, dass befallene Äste entfernt wurden, so dass die Verkehrssicherheit der verbliebenen Äste als gesichert gilt.\n\nSchnittgut geht ins Eigentum des AN über und ist ausschließlich arbeitstäglich zu entsorgen. Im direkten Bereich um Kitas, Schulen und KSP darf das Holz nicht vor Ort gehäckselt werden. Im Kontext des Pflegezustandes müssen die Baustellen sowie die Flächen mit Asthaufen nach dem Abtransport des Schnittgutes in ihren ursprünglichen Zustand zurückversetzt werden.\n\nErschwernisse durch Hanglage, Straßenverkehr, Zäune oder durch andere Hindernisse werden nicht gesondert vergütet.\n\nFeinäste (über 1 cm bis 3 cm) und Schwachäste (über 3 cm bis 5 cm) dürfen nicht mit der Motorsäge abgeschnitten werden, um saubere Schnittstellen zu gewährleisten. Im Rahmen der vorbeugenden Baumpflege kommen also überwiegend handgeführte Sägen zum Einsatz. Starkäste (d über 10 cm) können in Absprache mit der Bauaufsicht entnommen werden, wenn dies im Zusammenhang mit Verkehrssicherungsmaßnahmen erforderlich wird. Hier (und bei der Entfernung von Grobästen) ist der Einsatz von Motorsägen zulässig. Wo möglich ist es vorzuziehen Grob- oder Starkäste nur einzukürzen und nach außen abzuleiten. Das Schneiden von Starkästen wird über entsprechende Leistungspositionen extra abgerechnet.\n\nGrobäste sind gemäß ZTV Baumpflege 2017 Äste mit 5-10 cm Durchmesser. Starkäste haben einen Durchmesser von über 10 cm. Ihre Stärke wird in den Leistungspositionen\nnäher definiert. Bei Entnahme ab Starkaststärke ist die Bauaufsicht über Umfang und Baumnummer zu informieren, z.B. Foto vom Schadbild. Ein Astquerschnitt aus dem Bereich der Astanbindung ist zwecks Aufmaß aufzubewahren.\n\nDie Schadbeurteilung sowie die Schnittmaßnahmen müssen durch geschultes Personal erfolgen. Je eingesetzter Kolonne ist die Fachkunde in der Schadbildbeurteilung durch eine FLL-Zertifizierung als Baumkontrolleur (oder höher-/gleichwertig) und die Fachkunde für durchzuführende Schnittmaßnahmen durch die der Zertifizierung als European Treeworker (ETW) bzw. höher-/gleichwertig nachzuweisen.\nEs gelten in besonderem Maße die Bestimmungen der SVLFG Sozialversicherung Landwirtschaft, Forsten, Gartenbau gemäß B09.\nDer Auftragnehmer benennt der städtischen Bauleitung mindestens einen betrieblich verantwortlichen deutschsprachigen Ansprechpartner (mindestens Sprachlevel \"C1\"), sowie eine Vertretungsperson für Bürger, Behörden und Bauleitung mit Angabe der untertägigen Kontaktdaten auf der Baustelle. Außerdem ist je eingesetzter Kolonne ein deutschsprachiger Mitarbeiter seitens des AN zu stellen, um die Belange der Arbeitssicherheit gewährleisten zu können.\n\nDie Erstellung des Tagesleistungsbeleges zur gerichtsfesten abrechenbaren Leistungsanerkennung der ausgeführten Arbeiten ist gemäß den Vorbemerkungen anzufertigen.\nBei Bereitstellung der App ist der Tagesleistungsbeleg ausschließlich in digitaler Form anzufertigen. Sowohl die analoge, als auch die digitale Variante des Tagesleistungsbeleges beinhaltet die tagesgenaue, einzelbaumbezogene Dokumentation aller erbrachten abrechenbarer Leistungen. Die Variante der analogen Erstellung der Tagesleistungsbelege ist vom zuständigen Vorarbeiter zu unterschreiben, mit Firmenstempel zu versehen und der zuständigen städtischen Bauaufsicht zur Leistungsanerkennung vorzulegen. Der Leistungsnachweis (analog oder digital) ist spätestens am nächsten Arbeitstag nach geleisteter Arbeit einzureichen.",null,null,null,null,0]
["02.09.02.1010"," ","Kronenpflege mit Hubsteiger an Bäumen durchführen, d=5-20 cm.","Kronenpflege mittels Hubsteigereinsatzes an Bäumen durchführen.\nStammdurchmesser: über 5 bis 20 cm\nBaumhöhe: bis 20 m",20,"St",null,{"$f":"ROUND(E154*G154,2)","v":0},0]
["02.09.02.1020"," ","Kronenpflege mit Hubsteiger an Bäumen durchführen, d=21-30 cm.","Kronenpflege mittels Hubsteigereinsatzes an Bäumen durchführen.\nStammdurchmesser: über 20 bis 30 cm\nBaumhöhe: bis 20 m",30,"St",null,0,0]
["02.09.02.1030"," ","Kronenpflege mit Hubsteiger an Bäumen durchführen, d=31-40 cm.","Kronenpflege mittels Hubsteigereinsatzes an Bäumen durchführen.\nStammdurchmesser: über 30 bis 40 cm\nBaumhöhe: bis 20 m",40,"St",null,0,0]
["02.09.02.1040"," ","Kronenpflege mit Hubsteiger an Bäumen durchführen, d=41-50 cm.","Kronenpflege mittels Hubsteigereinsatzes an Bäumen durchführen.\nStammdurchmesser: über 40 bis 50 cm\nBaumhöhe: bis 20 m",40,"St",null,0,0]
["02.09.02.1050"," ","Kronenpflege mit Hubsteiger an Bäumen durchführen, d=51-60 cm.","Kronenpflege mittels Hubsteigereinsatzes an Bäumen durchführen.\nStammdurchmesser: über 50 bis 60 cm\nBaumhöhe: bis 20 m",40,"St",null,0,0]
["02.09.02.1060"," ","Kronenpflege mit Hubsteiger an Bäumen durchführen, d=61-70 cm.","Kronenpflege mittels Hubsteigereinsatzes an Bäumen durchführen.\nStammdurchmesser: über 60 bis 70 cm\nBaumhöhe: bis 20 m",40,"St",null,0,0]
["02.09.02.1070"," ","Kronenpflege mit Hubsteiger an Bäumen durchführen, d=71-80 cm.","Kronenpflege mittels Hubsteigereinsatzes an Bäumen durchführen.\nStammdurchmesser: über 70 bis 80 cm\nBaumhöhe: bis 20 m",40,"St",null,0,0]
["02.09.02.1080"," ","Kronenpflege mit Hubsteiger an Bäumen durchführen, d=81-90 cm.","Kronenpflege mittels Hubsteigereinsatzes an Bäumen durchführen.\nStammdurchmesser: über 80 bis 90 cm\nBaumhöhe: bis 25 m",35,"St",null,0,0]
["02.09.02.1090"," ","Kronenpflege mit Hubsteiger an Bäumen durchführen, d=91-100 cm.","Kronenpflege mittels Hubsteigereinsatzes an Bäumen durchführen.\nStammdurchmesser: über 90 bis 100 cm\nBaumhöhe: bis 25 m",30,"St",null,0,0]
["02.09.02.1100"," ","Kronenpflege mit Hubsteiger an Bäumen durchführen, d=101-110 cm.","Kronenpflege mittels Hubsteigereinsatzes an Bäumen durchführen.\nStammdurchmesser: über 100 bis 110 cm\nBaumhöhe: bis 25 m",25,"St",null,0,0]
["02.09.02.1110"," ","Kronenpflege mit Hubsteiger an Bäumen durchführen, d=111-120 cm.","Kronenpflege mittels Hubsteigereinsatzes an Bäumen durchführen.\nStammdurchmesser: über 110 bis 120 cm\nBaumhöhe: bis 25 m",20,"St",null,0,0]
["02.09.02.1120"," ","Kronenpflege mit Hubsteiger an Bäumen durchführen, d=121-130 cm.","Kronenpflege mittels Hubsteigereinsatzes an Bäumen durchführen.\nStammdurchmesser: über 120 bis 130 cm\nBaumhöhe: bis 30 m",10,"St",null,0,0]
["02.09.02.1130"," ","Kronenpflege mit Hubsteiger an Bäumen durchführen, d=131-140 cm.","Kronenpflege mittels Hubsteigereinsatzes an Bäumen durchführen.\nStammdurchmesser: über 130 bis 140 cm\nBaumhöhe: bis 30 m",10,"St",null,0,0]
["02.09.02.1140"," ","Kronenpflege mit Hubsteiger an Bäumen durchführen, d=141-150 cm.","Kronenpflege mittels Hubsteigereinsatzes an Bäumen durchführen.\nStammdurchmesser: über 140 bis 150 cm\nBaumhöhe: bis 30 m",10,"St",null,0,0]
["02.09.02.1150"," ","Kronenpflege mit Hubsteiger an Bäumen durchführen, d=151-160 cm.","Kronenpflege mittels Hubsteigereinsatzes an Bäumen durchführen.\nStammdurchmesser: über 150 bis 160 cm\nBaumhöhe: bis 30 m",4,"St",null,0,0]
["02.09.02.1160"," ","Kronenpflege mit Hubsteiger an Bäumen durchführen, d=161-170 cm.","Kronenpflege mittels Hubsteigereinsatzes an Bäumen durchführen.\nStammdurchmesser: über 160 bis 170 cm\nBaumhöhe: bis 30 m",4,"St",null,0,0]
["02.09.02.1170"," ","Kronenpflege mit Hubsteiger an Bäumen durchführen, d=171-180 cm.","Kronenpflege mittels Hubsteigereinsatzes an Bäumen durchführen.\nStammdurchmesser: über 170 bis 180 cm\nBaumhöhe: bis 30 m",4,"St",null,0,0]
["02.09.02.1320"," ","Zulage für Kronenpflege im Sonderarbeitsverfahren, d bis 50 cm","Zulage für Kronenpflege im Sonderarbeitsverfahren, z.B. Seilklettertechnik\nStammdurchmesser: bis 50 cm",20,"St",null,0,0]
["02.09.02.1330"," ","Zulage für Kronenpflege im Sonderarbeitsverfahren, d=51-100 cm","Zulage für Kronenpflege im Sonderarbeitsverfahren, z.B. Seilklettertechnik\nStammdurchmesser: über 50 bis 100 cm",20,"St",null,0,0]
["02.09.02.1340"," ","Zulage für Kronenpflege im Sonderarbeitsverfahren, d=101-150 cm","Zulage für Kronenpflege im Sonderarbeitsverfahren, z.B. Seilklettertechnik\nStammdurchmesser: über 100 bis 150 cm",20,"St",null,0,0]
["02.09.02.1350"," ","Zulage für Kronenpflege im Sonderarbeitsverfahren, d=151-200 cm","Zulage für Kronenpflege im Sonderarbeitsverfahren, z.B. Seilklettertechnik\nStammdurchmesser: über 150 bis 200 cm",10,"St",null,0,0]
["02.09.02.1510","I","Einkürzung von Kronenteilen","„Einkürzung von Kronenteilen“ \ngemäß Abschnitt 0.2.3.1 ZTV-Baumpflege und Anhang A 2 „Begriffsbestimmungen“ ZTV-Baumpflege\nAnmerkung\n„Schnittmaßnahmen an Kronen, die aus Gründen der Verkehrssicherheit oder des Baumumfeldes in Teilbereichen eingekürzt werden müssen, bei Bedarf auch im Grob- und Starkastbereich. Zum Erhalt der artgerechten Kronenstruktur macht diese Maßnahme oft eine Korrektur der gesamten Krone erforderlich.“\n\nAstdurchmesser unter 10 cm sind eher Zweige und Feinverästelungen und zählen nicht zur eigentlich tragenden Krone. Sie fallen in den Bereich der leichten Pflege (Kronenpflege oder Auslichtung), haben aber keine entscheidende strukturelle Rolle.\nAstdurchmesser ab 10 cm betreffen tragende Teile der Baumkrone, und eine Einkürzung dieser Äste fällt unter die eigentliche Kroneneinkürzung, die in verschiedenen Stärken (21-50 cm, 51-100 cm und größer) klassifiziert werden können.\n\nEinzelne Äste oder Stämmlinge sind entsprechend der Erfordernisse der Verkehrssicherheit und/oder des Baumumfeldes einzukürzen. Diese Leistungspositionen werden je nach Durchmesser und Länge des zu bearbeitenden Kronenteils vergütet. Der Durchmesser wird am Astansatz gemessen (wie in der nachfolgenden Skizze angegeben). Diese Leistungspositionen werden nur nach Absprache mit der Bauleitung durchgeführt und vergütet.\n\n ",null,null,null,null,0]
["02.09.02.1510"," ","Entfernen von Starkästen d>10-20 cm.","Entfernen von kranken, geschädigten, abgestorbenen oder massariabefallenen Starkästen über 10 bis 20 cm Durchmesser (Astansatz) und nachschneiden von Astausbruchs- oder Kappungsstellen.",50,"St",null,{"$f":"ROUND(E176*G176,2)","v":0},0]
["02.09.02.1520"," ","Entfernen von Starkästen d>20 cm.","Entfernen von kranken, geschädigten, abgestorbenen oder massariabefallenen Starkästen über 20 cm Durchmesser (Astansatz) und nachschneiden von Astausbruchs- oder Kappungsstellen.",50,"St",null,{"$f":"ROUND(E177*G177,2)","v":0},0]
["02.09.02.2510","I","Kronenpflege gemäß ZTV Baumpflege 2017","Kronenpflege gemäß ZTV Baumpflege 2017\nAnmerkung\nDie Kronenpflege schließt die Kontrolle von Platanen hinsichtlich eines Befalls mit Schaderregern, z.B. Massaria in den Baumkronen ein. Zu beachten ist, dass Totholz und durch Schaderreger befallenes Holz in jedem Fall zu entfernen ist. Die Entnahme toter und kranker Äste bis 10 cm Astdurchmesser am Astansatz ist in die Preise einzukalkulieren und wird nicht gesondert vergütet. Starkäste mit größerem Durchmesser werden gemäß der aufgeführten Sonderposition „Einkürzung von Kronenteilen“ zusätzlich vergütet.\n\nVorbeugende Schnittmaßnahmen im Fein- und Schwachastbereich (d=1-5 cm) und Grobastbereich (d=6-10 cm) dienen dem Erhalt eines art- bzw. sortentypischen Erscheinungsbildes.\nErfahrungsgemäß sind durchschnittlich bei Platanen 2-5 Stück Grobäste und bei allen anderen Gattungen1-2 Stück Grobäste je Baum zu entfernen. Diese Werte können im Einzelfall und je nach Kronenmächtigkeit stark nach unten und nach oben schwanken. Das Entfernen von Fein-, Schwach- und Grobästen im Zuge der Kronenpflege bzw. zur Wiederherstellung der Verkehrssicherheit ist als Nebenleistung mit einzukalkulieren.\n\nTote, kranke und im Absterben befindliche Äste, sowie Konkurrenzäste sind zu entfernen. \n\nBei sich kreuzenden und reibenden Ästen bis Schwachastbereich (d=1-5 cm) ist einer zu entfernen.\nNicht zukunftsorientierte Äste bis Grobastbereich (d=1-10 cm) im inneren Kronenbereich sind baumverträglich zu entnehmen, mit dem Ziel die Gesundheit des Baumes zu fördern, indem tote oder schwache Äste entfernt werden, um Platz und Ressourcen für gesündere Zweige zu schaffen.\n\nBereits vorhandene, unfachgerechte Schnitte (Stummel, unregelmäßige Schnittflächen ab Starkaststärke) sind nachzuschneiden. Wundholz oder Kallusbildung dürfen dabei nicht verletzt werden.\n\nAngrenzende Gebäude (Fassade, Dach etc.) sind mindestens 2 m, Wegeflächen, Laternen und Verkehrszeichen 1-2 m freizuhalten, sofern dies baumverträglich, z.B. durch Ableitung auf Versorgungsast, ermöglicht werden kann.\n\nErstellen eines Lichtraumprofils von mindestens 4,5 m im Fahrbahn- und mindestens 2,5 m außerhalb des Fahrbahnbereiches (Gehweg etc.), falls erforderlich sind Stamm- und Stockaustriebe zur Erhaltung oder Wiederherstellung des Lichtraumprofils zu entfernen. Im Fein- und Schwachastbereich (d=1-5 cm) gebildete Schleppen sind über dem Fahrbahnbereich bis zu einer Höhe von 6 bis 7 m, bzw. außerhalb des Fahrbahnbereiches (Gehweg etc.) bis zu einer Höhe von 3 bis 4 m baumverträglich zu entfernen (Abbildung 1).\n\n \nSchleppen vorher\n\n \nSchleppen nachher\n\nWährend eines Pflegeganges dürfen keine direkt neben- oder übereinander liegenden Wunden über 3 cm Durchmesser erzeugt werden. Ausgenommen sind tote, kranke und im Absterben befindliche Äste.\n\nIn der Baumkrone gebildete Reïterate sind auf ihre Anbindung sowie auf ihre statische Auswirkung hinsichtlich ihrer Position im Baum zu überprüfen und ggf. zu entfernen. Hinsichtlich der Funktionsentwicklung des Baumes sind gut angebundene statisch unproblematische Reïterate zukunftsorientiert zu vereinzeln. Darüber hinaus sind gebildete Ständer zur Erhaltung der Verkehrssicherheit zu vereinzeln und einzukürzen. Es ist möglichst auf Versorgungsast abzuleiten. Hierbei sind nebeneinander liegende Schnitte unvermeidbar.\n\nAstausbruchsstellen/Kappungsstellen sind auf Einfaulungen und hinsichtlich Ihrer Statik zu überprüfen und ggf. erneut einzukürzen und fachgerecht auf Zug- oder Versorgungsast abzuleiten. Der Artenschutz muss bei dieser Maßnahme in hohem Grad berücksichtigt werden, z.B. bei vorhandenen Spechtlöchern.\n\nEs muss eine Sichtkontrolle aller relevanten Äste in ihrer Gesamtheit erfolgen. \nNach der Kontrolle der Platanen hinsichtlich eines Krankheitsbefalls, muss dem Auftraggeber durch den FLL-zertifizierten Baumkontrolleur bescheinigt werden, dass befallene Äste entfernt wurden, so dass die Verkehrssicherheit der verbliebenen Äste als gesichert gilt.\n\nSchnittgut geht ins Eigentum des AN über und ist ausschließlich arbeitstäglich zu entsorgen. Im direkten Bereich um Kitas, Schulen und KSP darf das Holz nicht vor Ort gehäckselt werden. Im Kontext des Pflegezustandes müssen die Baustellen sowie die Flächen mit Asthaufen nach dem Abtransport des Schnittgutes in ihren ursprünglichen Zustand zurückversetzt werden.\n\nErschwernisse durch Hanglage, Straßenverkehr, Zäune oder durch andere Hindernisse werden nicht gesondert vergütet.\n\nFeinäste (über 1 cm bis 3 cm) und Schwachäste (über 3 cm bis 5 cm) dürfen nicht mit der Motorsäge abgeschnitten werden, um saubere Schnittstellen zu gewährleisten. Im Rahmen der vorbeugenden Baumpflege kommen also überwiegend handgeführte Sägen zum Einsatz. Starkäste (d über 10 cm) können in Absprache mit der Bauaufsicht entnommen werden, wenn dies im Zusammenhang mit Verkehrssicherungsmaßnahmen erforderlich wird. Hier (und bei der Entfernung von Grobästen) ist der Einsatz von Motorsägen zulässig. Wo möglich ist es vorzuziehen Grob- oder Starkäste nur einzukürzen und nach außen abzuleiten. Das Schneiden von Starkästen wird über entsprechende Leistungspositionen extra abgerechnet.\n\nGrobäste sind gemäß ZTV Baumpflege 2017 Äste mit 5-10 cm Durchmesser. Starkäste haben einen Durchmesser von über 10 cm. Ihre Stärke wird in den Leistungspositionen\nnäher definiert. Bei Entnahme ab Starkaststärke ist die Bauaufsicht über Umfang und Baumnummer zu informieren, z.B. Foto vom Schadbild. Ein Astquerschnitt aus dem Bereich der Astanbindung ist zwecks Aufmaß aufzubewahren.\n\nDie Schadbeurteilung sowie die Schnittmaßnahmen müssen durch geschultes Personal erfolgen. Je eingesetzter Kolonne ist die Fachkunde in der Schadbildbeurteilung durch eine FLL-Zertifizierung als Baumkontrolleur (oder höher-/gleichwertig) und die Fachkunde für durchzuführende Schnittmaßnahmen durch die der Zertifizierung als European Treeworker (ETW) bzw. höher-/gleichwertig nachzuweisen.\nBei Arbeiten in Seilklettertechnik müssen grundsätzlich zwei in Seilklettertechnik ausgebildete Mitarbeiter vor Ort sein, um sowohl das Klettern als auch das nach den Vorgaben der Berufsgenossenschaft vorgeschriebene Sichern des Kletterers gewährleistet werden kann. Beim Klettern sind Kambiumschoner zu verwenden. Steigeisen sind unzulässig.\nEs gelten in besonderem Maße die Bestimmungen der SVLFG Sozialversicherung Landwirtschaft, Forsten, Gartenbau gemäß B09. Demnach muss unter anderem zusätzlich zur allgemeinen betrieblichen Gefährdungsbeurteilung vor Beginn der Arbeiten für jeden einzelnen Baum eine schriftliche, einsatzbezogene Gefährdungsbeurteilung vor Ort erstellt werden.\n\nDer Auftragnehmer benennt der städtischen Bauleitung mindestens einen betrieblich verantwortlichen deutschsprachigen Ansprechpartner (mindestens Sprachlevel \"C1\"), sowie eine Vertretungsperson für Bürger, Behörden und Bauleitung mit Angabe der untertägigen Kontaktdaten auf der Baustelle. Außerdem ist je eingesetzter Kolonne ein deutschsprachiger Mitarbeiter seitens des AN zu stellen, um die Belange der Arbeitssicherheit gewährleisten zu können.\n\nDie Erstellung des Tagesleistungsbeleges zur gerichtsfesten abrechenbaren Leistungsanerkennung der ausgeführten Arbeiten ist gemäß den Vorbemerkungen anzufertigen.\nBei Bereitstellung der App ist der Tagesleistungsbeleg ausschließlich in digitaler Form anzufertigen. Sowohl die analoge, als auch die digitale Variante des Tagesleistungsbeleges beinhaltet die tagesgenaue, einzelbaumbezogene Dokumentation aller erbrachten abrechenbarer Leistungen. Die Variante der analogen Erstellung der Tagesleistungsbelege ist vom zuständigen Vorarbeiter zu unterschreiben, mit Firmenstempel zu versehen und der zuständigen städtischen Bauaufsicht zur Leistungsanerkennung vorzulegen. Der Leistungsnachweis (analog oder digital) ist spätestens am nächsten Arbeitstag nach geleisteter Arbeit einzureichen.",null,null,null,null,0]
["02.09.02.2510","I","Einkürzung von Kronenteilen","„Einkürzung von Kronenteilen“ \ngemäß Abschnitt 0.2.3.1 ZTV-Baumpflege und Anhang A 2 „Begriffsbestimmungen“ ZTV-Baumpflege\nAnmerkung\n„Schnittmaßnahmen an Kronen, die aus Gründen der Verkehrssicherheit oder des Baumumfeldes in Teilbereichen eingekürzt werden müssen, bei Bedarf auch im Grob- und Starkastbereich. Zum Erhalt der artgerechten Kronenstruktur macht diese Maßnahme oft eine Korrektur der gesamten Krone erforderlich.“\n\nAstdurchmesser unter 10 cm sind eher Zweige und Feinverästelungen und zählen nicht zur eigentlich tragenden krone. Sie fallen in den Bereich der leichten Pflege (Kronenpflege oder Auslichtung), haben aber keine entscheidende strukturelle Rolle.\nAstdurchmesser ab 10 cm betreffen tragende Teile der Baumkrone, und eine Einkürzung dieser Äste fällt unter die eigentliche Kroneneinkürzung, die in verschiedenen Stärken (21-50 cm, 51-100 cm und größer) klassifiziert werden können.\n\nEinzelne Äste oder Stämmlinge sind entsprechend der Erfordernisse der Verkehrssicherheit und/oder des Baumumfeldes einzukürzen. Diese Leistungspositionen werden je nach Durchmesser und Länge des zu bearbeitenden Kronenteils vergütet. Der Durchmesser wird am Astansatz gemessen (wie in der nachfolgenden Skizze angegeben). Diese Leistungspositionen werden nur nach Absprache mit der Bauleitung durchgeführt und vergütet.\n\n ",null,null,null,null,0]
["02.09.02.2510"," ","Entfernen von Starkästen d>10-20 cm in SKT.","Entfernen von kranken, geschädigten, abgestorbenen oder massariabefallenen Starkästen über 10 bis 20 cm Durchmesser (Astansatz) und nachschneiden von Astausbruchs- oder Kappungsstellen in Seilklettertechnik.",20,"St",null,{"$f":"ROUND(E180*G180,2)","v":0},0]
["02.09.02.2520"," ","Entfernen von Starkästen d>20 cm in SKT.","Entfernen von kranken, geschädigten, abgestorbenen oder massariabefallenen Starkästen über 20 cm Durchmesser (Astansatz) und nachschneiden von Astausbruchs- oder Kappungsstellen in Seilklettertechnik.",20,"St",null,{"$f":"ROUND(E181*G181,2)","v":0},0]
["02.09.06","3","Baumkronensicherung",null,null,null,null,{"$f":"SUM(H184:H192)","v":0}]
["02.09.06.1010","I","Baumkronensicherung","Baumkronensicherung\nAnmerkung\nSämtliche Arbeiten sind gemäß ZTV-Baum neueste Fassung durchzuführen.\nEs wird darauf hingewiesen, dass die Arbeiten an Bäumen jeglicher Art und an unterschiedlichen Standorten durchgeführt werden müssen. Alle, sich aus dem Geländeverlauf oder Gefällzonen ergebende Erschwernisse oder andere Erschwernisse, wie z. B. Leitungen o. a. werden nicht extra vergütet. Deshalb wird dem Auftragnehmer dringend empfohlen, sich mit den ausgeschriebenen Leistungen vor der Angebotsabgabe vertraut zu machen. Nachforderungen für erschwerende Bedingungen werden vom AG nicht akzeptiert.\nFolgende Leistungen obliegen dem AN, ohne dass sie noch extra in den Einzelpositionen erwähnt werden:\nReinigung des Arbeitsbereiches, laden und abfahren des Räum- und Schnittgutes zur Deponie.\nDer Arbeitgeber verlangt für die Abnahme den Einsatz von technischem Gerät (Hubsteiger, Arbeitsbühne, mechanische Leiter o. a.), wenn keine anderen Forderungen in den speziellen Anmerkungen zum Bauvorhaben gestellt werden.\n\nErfahrungswerte für die Bemessung von dynamischen Kronensicherungssystemen:\n\nDurchmesser Ast/Stämmling\t\tMindestsystembruchlast\nbis 40 cm\t\t\t\t\t\t\t\t2 t\nüber 40 bis 60 cm\t\t\t\t\t\t4 t\nüber 60 bis 80 cm\t\t\t\t\t\t8 t\nüber 80 cm\t\t\t\t\t\t\t\tEinzelfallentscheidung",null,null,null,null,0]
["02.09.06.1010"," ","Einbau einer Bruchsicherung mit mind. 2 t Bruchlast, bis 300 cm.","Lieferung und Einbau einer dynamischen Bruchsicherung aus Hohlseil, UV-beständig gemäß Kapitel 3.2. ZTV-Baumpflege 2016 mit mindestens 2 t Bruchlast mit Überlastanzeiger zur Früherkennung von Schäden am System vom Hubsteiger aus, inkl. Reibeschutz mit Gewebeschlauch.\nLänge der Sicherung: bis 300 cm",2,"St",null,{"$f":"ROUND(E184*G184,2)","v":0},0]
["02.09.06.1020"," ","Einbau einer Bruchsicherung mit mind. 2 t Bruchlast, über 300-600 cm.","Lieferung und Einbau einer dynamischen Bruchsicherung aus Hohlseil, UV-beständig gemäß Kapitel 3.2. ZTV-Baumpflege 2016 mit mindestens 2 t Bruchlast mit Überlastanzeiger zur Früherkennung von Schäden am System vom Hubsteiger aus, inkl. Reibeschutz mit Gewebeschlauch.\nLänge der Sicherung: über 300 cm bis 600 cm",2,"St",null,0,0]
["02.09.06.1030"," ","Einbau einer Bruchsicherung mit mind. 2 t Bruchlast, über 600 cm.","Lieferung und Einbau einer dynamischen Bruchsicherung aus Hohlseil, UV-beständig gemäß Kapitel 3.2. ZTV-Baumpflege 2016 mit mindestens 2 t Bruchlast mit Überlastanzeiger zur Früherkennung von Schäden am System vom Hubsteiger aus, inkl. Reibeschutz mit Gewebeschlauch.\nLänge der Sicherung: über 600 cm",2,"St",null,0,0]
["02.09.06.1040"," ","Einbau einer Bruchsicherung mit mind. 4 t Bruchlast, bis 300 cm.","Lieferung und Einbau einer dynamischen Bruchsicherung aus Hohlseil, UV-beständig gemäß Kapitel 3.2. ZTV-Baumpflege 2016 mit mindestens 4 t Bruchlast mit Überlastanzeiger zur Früherkennung von Schäden am System vom Hubsteiger aus, inkl. Reibeschutz mit Gewebeschlauch.\nLänge der Sicherung: bis 300 cm",2,"St",null,0,0]
["02.09.06.1050"," ","Einbau einer Bruchsicherung mit mind. 4 t Bruchlast, über 300-600 cm.","Lieferung und Einbau einer dynamischen Bruchsicherung aus Hohlseil, UV-beständig gemäß Kapitel 3.2. ZTV-Baumpflege 2016 mit mindestens 4 t Bruchlast mit Überlastanzeiger zur Früherkennung von Schäden am System vom Hubsteiger aus, inkl. Reibeschutz mit Gewebeschlauch.\nLänge der Sicherung: über 300 cm bis 600 cm",2,"St",null,0,0]
["02.09.06.1060"," ","Einbau einer Bruchsicherung mit mind. 4 t Bruchlast, über 600 cm.","Lieferung und Einbau einer dynamischen Bruchsicherung aus Hohlseil, UV-beständig gemäß Kapitel 3.2. ZTV-Baumpflege 2016 mit mindestens 4 t Bruchlast mit Überlastanzeiger zur Früherkennung von Schäden am System vom Hubsteiger aus, inkl. Reibeschutz mit Gewebeschlauch.\nLänge der Sicherung: über 600 cm",2,"St",null,0,0]
["02.09.06.1070"," ","Einbau einer Bruchsicherung mit mind. 8 t Bruchlast, bis 300 cm.","Lieferung und Einbau einer dynamischen Bruchsicherung aus Hohlseil, UV-beständig gemäß Kapitel 3.2. ZTV-Baumpflege 2016 mit mindestens 8 t Bruchlast mit Überlastanzeiger zur Früherkennung von Schäden am System vom Hubsteiger aus, inkl. Reibeschutz mit Gewebeschlauch.\nLänge der Sicherung: bis 300 cm",2,"St",null,0,0]
["02.09.06.1080"," ","Einbau einer Bruchsicherung mit mind. 8 t Bruchlast, über 300-600 cm.","Lieferung und Einbau einer dynamischen Bruchsicherung aus Hohlseil, UV-beständig gemäß Kapitel 3.2. ZTV-Baumpflege 2016 mit mindestens 8 t Bruchlast mit Überlastanzeiger zur Früherkennung von Schäden am System vom Hubsteiger aus, inkl. Reibeschutz mit Gewebeschlauch.\nLänge der Sicherung: über 300 cm bis 600 cm",2,"St",null,0,0]
["02.09.06.1100"," ","Einbau einer Tragsicherung mit mind. 4 t Bruchlast, über 600 cm.","Lieferung und Einbau einer Tragsicherung aus Hohlseil, UV-beständig gemäß Kapitel 3.2. ZTV-Baumpflege 2016 mit mindestens 4 t Bruchlast vom Hubsteiger aus, inkl. Reibeschutz mit Gewebeschlauch.\nLänge der Sicherung: über 600 cm",2,"St",null,0,0]